Workbook

Sheet Inhaltsverzeichnis
A1: Prof. Dr. Peter Schmidt
A2: Verteilungen: Tafeln und Grafiken
A3: zum Buch: Statistik schrittweise verstehen
A4: (UTB 2019)
A6: Inhalt: | B6: Link (Tabellenblatt)
A7: ='T1 Zufallszahlen'!A1 -> Tabelle 1 - Einige Zufallszahlen | B7: T1 Zufallszahlen
A8: ='T2 Binomialverteilung'!A1 -> Tabelle 2: Binomialverteilung | B8: T2 Binomialverteilung
A9: ='T3 Fsn(z)'!A1 -> Tabelle 3: Standardnormalverteilung | B9: T3 Fsn(z)
A10: ='T3 - Abbildung Normalverteilung'!A1 -> Theoretische Verteilungen -- Normalverteilung und Standardnormalverteilung | B10: T3 - Abbildung Normalverteilung
A11: ='T3 - Abb.Diskrete u. stetige NV'!A1 -> T3 - Abb.Diskrete u. stetige NV | B11: T3 - Abb.Diskrete u. stetige NV
A12: ='T4 F(Chi^2)'!A1 -> Tabelle 4: c2-Verteilung | B12: T4 F(Chi^2)
A13: ='T4 Abbildung zu Chi^2 f'!A1 -> Tabelle 4: c2-Verteilung | B13: T4 Abbildung zu Chi^2 f
A14: ='T5a F(t)'!A1 -> Tabelle 5 a: t-Verteilung | B14: T5a F(t)
A15: ='T5b D(t)'!A1 -> Tabelle 5 b: t-Verteilung | B15: T5b D(t)
A16: ='t-Vert Grafik'!A1 -> t-Verteilung | B16: t-Vert Grafik

Sheet T1 Zufallszahlen
A1: Tabelle 1 - Einige Zufallszahlen
A3: =RANDBETWEEN(0,99) -> 23 | B3: =RANDBETWEEN(0,99) -> 98 | C3: 10 | D3: 75 | E3: 18 | F3: 28 | G3: 6 | H3: 39 | I3: 38 | J3: 31
A4: =RANDBETWEEN(0,99) -> 24 | B4: 34 | C4: 27 | D4: 53 | E4: 90 | F4: 61 | G4: 95 | H4: 52 | I4: 30 | J4: 80
A5: =RANDBETWEEN(0,99) -> 54 | B5: 38 | C5: 20 | D5: 58 | E5: 8 | F5: 63 | G5: 70 | H5: 91 | I5: 40 | J5: 17
A6: =RANDBETWEEN(0,99) -> 53 | B6: 79 | C6: 78 | D6: 60 | E6: 91 | F6: 37 | G6: 13 | H6: 15 | I6: 34 | J6: 37
A7: =RANDBETWEEN(0,99) -> 62 | B7: 82 | C7: 92 | D7: 48 | E7: 37 | F7: 48 | G7: 73 | H7: 12 | I7: 76 | J7: 56
A9: =RANDBETWEEN(0,99) -> 35 | B9: 43 | C9: 68 | D9: 2 | E9: 88 | F9: 26 | G9: 25 | H9: 27 | I9: 27 | J9: 28
A10: =RANDBETWEEN(0,99) -> 11 | B10: 41 | C10: 67 | D10: 25 | E10: 9 | F10: 25 | G10: 29 | H10: 2 | I10: 12 | J10: 18
A11: =RANDBETWEEN(0,99) -> 76 | B11: 7 | C11: 73 | D11: 89 | E11: 2 | F11: 87 | G11: 76 | H11: 43 | I11: 46 | J11: 32
A12: =RANDBETWEEN(0,99) -> 57 | B12: 40 | C12: 39 | D12: 10 | E12: 19 | F12: 82 | G12: 44 | H12: 79 | I12: 93 | J12: 29
A13: =RANDBETWEEN(0,99) -> 66 | B13: 32 | C13: 43 | D13: 28 | E13: 33 | F13: 7 | G13: 4 | H13: 32 | I13: 75 | J13: 42
A15: =RANDBETWEEN(0,99) -> 75 | B15: 27 | C15: 15 | D15: 36 | E15: 57 | F15: 44 | G15: 18 | H15: 9 | I15: 24 | J15: 89
A16: =RANDBETWEEN(0,99) -> 49 | B16: 65 | C16: 11 | D16: 84 | E16: 21 | F16: 67 | G16: 14 | H16: 67 | I16: 92 | J16: 6
A17: =RANDBETWEEN(0,99) -> 17 | B17: 57 | C17: 16 | D17: 84 | E17: 28 | F17: 3 | G17: 40 | H17: 65 | I17: 80 | J17: 41
A18: =RANDBETWEEN(0,99) -> 92 | B18: 54 | C18: 27 | D18: 43 | E18: 81 | F18: 33 | G18: 57 | H18: 50 | I18: 22 | J18: 93
A19: =RANDBETWEEN(0,99) -> 93 | B19: 6 | C19: 42 | D19: 58 | E19: 35 | F19: 9 | G19: 86 | H19: 67 | I19: 35 | J19: 12
A21: =RANDBETWEEN(0,99) -> 72 | B21: 99 | C21: 94 | D21: 62 | E21: 62 | F21: 29 | G21: 85 | H21: 99 | I21: 36 | J21: 6
A22: =RANDBETWEEN(0,99) -> 95 | B22: =RANDBETWEEN(0,99) -> 57 | C22: 2 | D22: 41 | E22: 44 | F22: 35 | G22: 99 | H22: 28 | I22: 65 | J22: 37
A23: =RANDBETWEEN(0,99) -> 70 | B23: 34 | C23: 39 | D23: 49 | E23: 30 | F23: 22 | G23: 11 | H23: 33 | I23: 45 | J23: 41
A24: =RANDBETWEEN(0,99) -> 28 | B24: 15 | C24: 95 | D24: 43 | E24: 65 | F24: 6 | G24: 70 | H24: 36 | I24: 14 | J24: 6
A25: =RANDBETWEEN(0,99) -> 18 | B25: 47 | C25: 27 | D25: 1 | E25: 40 | F25: 52 | G25: 83 | H25: 51 | I25: 87 | J25: 96
A27: =RANDBETWEEN(0,99) -> 53 | B27: 34 | C27: 48 | D27: 1 | E27: 0 | F27: 54 | G27: 79 | H27: 22 | I27: 32 | J27: 97
A28: =RANDBETWEEN(0,99) -> 35 | B28: 97 | C28: 94 | D28: 5 | E28: 13 | F28: 25 | G28: 52 | H28: 17 | I28: 16 | J28: 76
A29: 68 | B29: 55 | C29: 35 | D29: 83 | E29: 28 | F29: 53 | G29: 20 | H29: 41 | I29: 58 | J29: 49
A30: 36 | B30: 15 | C30: 51 | D30: 87 | E30: 44 | F30: 60 | G30: 29 | H30: 91 | I30: 35 | J30: 84
A31: 50 | B31: 13 | C31: 51 | D31: 67 | E31: 15 | F31: 42 | G31: 3 | H31: 76 | I31: 79 | J31: 60

Sheet T2 Binomialverteilung
A1: Tabelle 2: Binomialverteilung | K1: Wahrscheinlichkeitsfunktion
B2: f (x | n; p)
A4: n | B4: x | C4: p
C5: 0.01 | D5: 0.05 | E5: 0.1 | F5: 0.15 | G5: 0.2 | H5: 0.25 | I5: 0.3 | J5: 0.4 | K5: 0.5
A7: 1 | B7: 0 | C7: =IF($A7<>"",BINOMDIST($B7,$A7,C$5,FALSE),"") -> 0.99 | D7: =IF($A7<>"",BINOMDIST($B7,$A7,D$5,FALSE),"") -> 0.95 | E7: =IF($A7<>"",BINOMDIST($B7,$A7,E$5,FALSE),"") -> 0.9 | F7: 0.85 | G7: 0.8 | H7: 0.75 | I7: 0.7 | J7: 0.6 | K7: 0.5
A8: 1 | B8: 1 | C8: 0.01 | D8: 0.05 | E8: 0.1 | F8: 0.15 | G8: 0.2 | H8: 0.25 | I8: 0.3 | J8: 0.4 | K8: 0.5
A10: 2 | B10: 0 | C10: 0.9801 | D10: 0.9025 | E10: 0.81 | F10: 0.7225 | G10: 0.64 | H10: 0.5625 | I10: 0.49 | J10: 0.36 | K10: 0.25
A11: 2 | B11: 1 | C11: 0.0198 | D11: 0.095 | E11: 0.18 | F11: 0.255 | G11: 0.32 | H11: 0.375 | I11: 0.42 | J11: 0.48 | K11: 0.5
A12: 2 | B12: 2 | C12: 0.0001 | D12: 0.0025 | E12: 0.01 | F12: 0.0225 | G12: 0.04 | H12: 0.0625 | I12: 0.09 | J12: 0.16 | K12: 0.25
A14: 3 | B14: 0 | C14: 0.970299 | D14: 0.857375 | E14: 0.729 | F14: 0.614125 | G14: 0.512 | H14: 0.421875 | I14: 0.343 | J14: 0.216 | K14: 0.125
A15: 3 | B15: 1 | C15: 0.029403 | D15: 0.135375 | E15: 0.243 | F15: 0.325125 | G15: 0.384 | H15: 0.421875 | I15: 0.441 | J15: 0.432 | K15: 0.375
A16: 3 | B16: 2 | C16: 0.000297 | D16: 0.007125 | E16: 0.027 | F16: 0.057375 | G16: 0.096 | H16: 0.140625 | I16: 0.189 | J16: 0.288 | K16: 0.375
A17: 3 | B17: 3 | C17: 1e-06 | D17: 0.000125 | E17: 0.001 | F17: 0.003375 | G17: 0.008 | H17: 0.015625 | I17: 0.027 | J17: 0.064 | K17: 0.125
A19: 4 | B19: 0 | C19: 0.96059601 | D19: 0.81450625 | E19: 0.6561 | F19: 0.52200625 | G19: 0.4096 | H19: 0.31640625 | I19: 0.2401 | J19: 0.1296 | K19: 0.0625
A20: 4 | B20: 1 | C20: 0.03881196 | D20: 0.171475 | E20: 0.2916 | F20: 0.368475 | G20: 0.4096 | H20: 0.421875 | I20: 0.4116 | J20: 0.3456 | K20: 0.25
A21: 4 | B21: 2 | C21: 0.00058806 | D21: 0.0135375 | E21: 0.0486 | F21: 0.0975375 | G21: 0.1536 | H21: 0.2109375 | I21: 0.2646 | J21: 0.3456 | K21: 0.375
A22: 4 | B22: 3 | C22: 3.96e-06 | D22: 0.000475 | E22: 0.0036 | F22: 0.011475 | G22: 0.0256 | H22: 0.046875 | I22: 0.0756 | J22: 0.1536 | K22: 0.25
A23: 4 | B23: 4 | C23: 1e-08 | D23: =IF($A23<>"",BINOMDIST($B23,$A23,D$5,FALSE),"") -> 6.25e-06 | E23: =IF($A23<>"",BINOMDIST($B23,$A23,E$5,FALSE),"") -> 0.0001 | F23: =IF($A23<>"",BINOMDIST($B23,$A23,F$5,FALSE),"") -> 0.00050625 | G23: 0.0016 | H23: 0.00390625 | I23: 0.0081 | J23: 0.0256 | K23: 0.0625
A25: 5 | B25: 0 | C25: =IF($A25<>"",BINOMDIST($B25,$A25,C$5,FALSE),"") -> 0.9509900499 | D25: 0.7737809375 | E25: 0.59049 | F25: 0.4437053125 | G25: 0.32768 | H25: 0.2373046875 | I25: 0.16807 | J25: 0.07776 | K25: 0.03125
A26: 5 | B26: 1 | C26: =IF($A26<>"",BINOMDIST($B26,$A26,C$5,FALSE),"") -> 0.0480298005 | D26: 0.2036265625 | E26: 0.32805 | F26: 0.3915046875 | G26: 0.4096 | H26: 0.3955078125 | I26: 0.36015 | J26: 0.2592 | K26: 0.15625
A27: 5 | B27: 2 | C27: 0.000970299 | D27: 0.021434375 | E27: 0.0729 | F27: 0.138178125 | G27: 0.2048 | H27: 0.263671875 | I27: 0.3087 | J27: 0.3456 | K27: 0.3125
A28: 5 | B28: 3 | C28: 9.801e-06 | D28: 0.001128125 | E28: 0.0081 | F28: 0.024384375 | G28: 0.0512 | H28: 0.087890625 | I28: 0.1323 | J28: 0.2304 | K28: 0.3125
A29: 5 | B29: 4 | C29: 4.95e-08 | D29: =IF($A29<>"",BINOMDIST($B29,$A29,D$5,FALSE),"") -> 2.96875e-05 | E29: =IF($A29<>"",BINOMDIST($B29,$A29,E$5,FALSE),"") -> 0.00045 | F29: 0.0021515625 | G29: 0.0064 | H29: 0.0146484375 | I29: 0.02835 | J29: 0.0768 | K29: 0.15625
A31: 5 | B31: 5 | C31: 1e-10 | D31: =IF($A31<>"",BINOMDIST($B31,$A31,D$5,FALSE),"") -> 3.125e-07 | E31: =IF($A31<>"",BINOMDIST($B31,$A31,E$5,FALSE),"") -> 1e-05 | F31: 7.59375e-05 | G31: 0.00032 | H31: 0.0009765625 | I31: 0.00243 | J31: 0.01024 | K31: 0.03125
A33: 6 | B33: 0 | C33: =IF($A33<>"",BINOMDIST($B33,$A33,C$5,FALSE),"") -> 0.9414801494 | D33: 0.7350918906 | E33: 0.531441 | F33: 0.3771495156 | G33: 0.262144 | H33: 0.1779785156 | I33: 0.117649 | J33: 0.046656 | K33: 0.015625
A34: 6 | B34: 1 | C34: 0.05705940299 | D34: 0.2321342813 | E34: 0.354294 | F34: 0.3993347813 | G34: 0.393216 | H34: 0.3559570312 | I34: 0.302526 | J34: 0.186624 | K34: 0.09375
A35: 6 | B35: 2 | C35: 0.001440894015 | D35: 0.03054398438 | E35: 0.098415 | F35: 0.1761771094 | G35: 0.24576 | H35: 0.2966308594 | I35: 0.324135 | J35: 0.31104 | K35: 0.234375
A36: 6 | B36: 3 | C36: 1.940598e-05 | D36: 0.0021434375 | E36: 0.01458 | F36: 0.0414534375 | G36: 0.08192 | H36: 0.1318359375 | I36: 0.18522 | J36: 0.27648 | K36: 0.3125
A37: 6 | B37: 4 | C37: 1.47015e-07 | D37: =IF($A37<>"",BINOMDIST($B37,$A37,D$5,FALSE),"") -> 8.4609375e-05 | E37: =IF($A37<>"",BINOMDIST($B37,$A37,E$5,FALSE),"") -> 0.001215 | F37: 0.005486484375 | G37: 0.01536 | H37: 0.03295898438 | I37: 0.059535 | J37: 0.13824 | K37: 0.234375
A39: 6 | B39: 5 | C39: 5.94e-10 | D39: 1.78125e-06 | E39: 5.4e-05 | F39: 0.00038728125 | G39: 0.001536 | H39: 0.00439453125 | I39: 0.010206 | J39: 0.036864 | K39: 0.09375
A40: 6 | B40: 6 | C40: 1e-12 | D40: =IF($A40<>"",BINOMDIST($B40,$A40,D$5,FALSE),"") -> 1.5625e-08 | E40: =IF($A40<>"",BINOMDIST($B40,$A40,E$5,FALSE),"") -> 1e-06 | F40: 1.1390625e-05 | G40: 6.4e-05 | H40: 0.000244140625 | I40: 0.000729 | J40: 0.004096 | K40: 0.015625
A42: 7 | B42: 0 | C42: 0.9320653479 | D42: 0.6983372961 | E42: 0.4782969 | F42: 0.3205770883 | G42: 0.2097152 | H42: 0.1334838867 | I42: 0.0823543 | J42: 0.0279936 | K42: 0.0078125
A43: 7 | B43: 1 | C43: 0.06590361046 | D43: 0.2572821617 | E43: 0.3720087 | F43: 0.3960069914 | G43: 0.3670016 | H43: 0.3114624023 | I43: 0.2470629 | J43: 0.1306368 | K43: 0.0546875
A44: 7 | B44: 2 | C44: 0.001997079105 | D44: 0.04062349922 | E44: 0.1240029 | F44: 0.2096507602 | G44: 0.2752512 | H44: 0.3114624023 | I44: 0.3176523 | J44: 0.2612736 | K44: 0.1640625
A45: 7 | B45: 3 | C45: 3.362086035e-05 | D45: 0.003563464844 | E45: 0.0229635 | F45: 0.06166198828 | G45: 0.114688 | H45: 0.173034668 | I45: 0.2268945 | J45: 0.290304 | K45: 0.2734375
A46: 7 | B46: 4 | C46: 3.3960465e-07 | D46: =IF($A46<>"",BINOMDIST($B46,$A46,D$5,FALSE),"") -> 0.0001875507813 | E46: =IF($A46<>"",BINOMDIST($B46,$A46,E$5,FALSE),"") -> 0.0025515 | F46: 0.01088152734 | G46: 0.028672 | H46: 0.05767822266 | I46: 0.0972405 | J46: 0.193536 | K46: 0.2734375
A48: 7 | B48: 5 | C48: 2.05821e-09 | D48: 5.92265625e-06 | E48: 0.0001701 | F48: 0.001152161719 | G48: 0.0043008 | H48: 0.01153564453 | I48: 0.0250047 | J48: 0.0774144 | K48: 0.1640625
A49: 7 | B49: 6 | C49: =IF($A49<>"",BINOMDIST($B49,$A49,C$5,FALSE),"") -> 6.93e-12 | D49: =IF($A49<>"",BINOMDIST($B49,$A49,D$5,FALSE),"") -> 1.0390625e-07 | E49: =IF($A49<>"",BINOMDIST($B49,$A49,E$5,FALSE),"") -> 6.3e-06 | F49: 6.777421875e-05 | G49: 0.0003584 | H49: 0.001281738281 | I49: 0.0035721 | J49: 0.0172032 | K49: 0.0546875
A50: 7 | B50: 7 | C50: 1e-14 | D50: =IF($A50<>"",BINOMDIST($B50,$A50,D$5,FALSE),"") -> 7.8125e-10 | E50: =IF($A50<>"",BINOMDIST($B50,$A50,E$5,FALSE),"") -> 1e-07 | F50: 1.70859375e-06 | G50: 1.28e-05 | H50: 6.103515625e-05 | I50: 0.0002187 | J50: 0.0016384 | K50: 0.0078125
A52: 8 | B52: 0 | C52: =IF($A52<>"",BINOMDIST($B52,$A52,C$5,FALSE),"") -> 0.9227446944 | D52: 0.6634204313 | E52: 0.43046721 | F52: 0.272490525 | G52: 0.16777216 | H52: 0.100112915 | I52: 0.05764801 | J52: 0.01679616 | K52: 0.00390625
A53: 8 | B53: 1 | C53: 0.07456522783 | D53: 0.2793349184 | E53: 0.38263752 | F53: 0.3846925059 | G53: 0.33554432 | H53: 0.2669677734 | I53: 0.19765032 | J53: 0.08957952 | K53: 0.03125
A54: 8 | B54: 2 | C54: 0.002636144418 | D54: 0.05145643234 | E54: 0.14880348 | F54: 0.2376041948 | G54: 0.29360128 | H54: 0.3114624023 | I54: 0.29647548 | J54: 0.20901888 | K54: 0.109375
A55: 8 | B55: 3 | C55: 5.325544279e-05 | D55: 0.005416466563 | E55: 0.03306744 | F55: 0.08386030406 | G55: 0.14680064 | H55: 0.2076416016 | I55: 0.25412184 | J55: 0.27869184 | K55: 0.21875
A56: 8 | B56: 4 | C56: 6.72417207e-07 | D56: =IF($A56<>"",BINOMDIST($B56,$A56,D$5,FALSE),"") -> 0.0003563464844 | E56: =IF($A56<>"",BINOMDIST($B56,$A56,E$5,FALSE),"") -> 0.0045927 | F56: 0.01849859648 | G56: 0.0458752 | H56: 0.08651733398 | I56: 0.1361367 | J56: 0.2322432 | K56: 0.2734375
A58: 8 | B58: 5 | C58: 5.4336744e-09 | D58: 1.50040625e-05 | E58: 0.00040824 | F58: 0.002611566563 | G58: 0.00917504 | H58: 0.02307128906 | I58: 0.04667544 | J58: 0.12386304 | K58: 0.21875
A59: 8 | B59: 6 | C59: 2.74428e-11 | D59: =IF($A59<>"",BINOMDIST($B59,$A59,D$5,FALSE),"") -> 3.9484375e-07 | E59: =IF($A59<>"",BINOMDIST($B59,$A59,E$5,FALSE),"") -> 2.268e-05 | F59: 0.0002304323438 | G59: 0.00114688 | H59: 0.003845214844 | I59: 0.01000188 | J59: 0.04128768 | K59: 0.109375
A60: 8 | B60: 7 | C60: 7.92e-14 | D60: =IF($A60<>"",BINOMDIST($B60,$A60,D$5,FALSE),"") -> 5.9375e-09 | E60: =IF($A60<>"",BINOMDIST($B60,$A60,E$5,FALSE),"") -> 7.2e-07 | F60: 1.16184375e-05 | G60: 8.192e-05 | H60: 0.0003662109375 | I60: 0.00122472 | J60: 0.00786432 | K60: 0.03125
A61: 8 | B61: 8 | C61: 1e-16 | D61: 3.90625e-11 | E61: 1e-08 | F61: 2.562890625e-07 | G61: 2.56e-06 | H61: 1.525878906e-05 | I61: 6.561e-05 | J61: 0.00065536 | K61: 0.00390625
A63: 9 | B63: 0 | C63: 0.9135172475 | D63: 0.6302494097 | E63: 0.387420489 | F63: 0.2316169463 | G63: 0.134217728 | H63: 0.07508468628 | I63: 0.040353607 | J63: 0.010077696 | K63: 0.001953125
A64: 9 | B64: 1 | C64: 0.0830470225 | D64: 0.2985391941 | E64: 0.387420489 | F64: 0.3678622088 | G64: 0.301989888 | H64: 0.2252540588 | I64: 0.155649627 | J64: 0.060466176 | K64: 0.017578125
A65: 9 | B65: 2 | C65: 0.003355435252 | D65: 0.06285035665 | E65: 0.172186884 | F65: 0.2596674415 | G65: 0.301989888 | H65: 0.3003387451 | I65: 0.266827932 | J65: 0.161243136 | K65: 0.0703125
A66: 9 | B66: 3 | C66: 7.908433255e-05 | D66: 0.007718464852 | E66: 0.044641044 | F66: 0.1069218877 | G66: 0.176160768 | H66: 0.2335968018 | I66: 0.266827932 | J66: 0.250822656 | K66: 0.1640625
A67: 9 | B67: 4 | C67: 1.198247463e-06 | D67: =IF($A67<>"",BINOMDIST($B67,$A67,D$5,FALSE),"") -> 0.0006093524883 | E67: =IF($A67<>"",BINOMDIST($B67,$A67,E$5,FALSE),"") -> 0.007440174 | F67: 0.02830285262 | G67: 0.066060288 | H67: 0.1167984009 | I67: 0.171532242 | J67: 0.250822656 | K67: 0.24609375
A69: 9 | B69: 5 | C69: =IF($A69<>"",BINOMDIST($B69,$A69,C$5,FALSE),"") -> 1.210350973e-08 | D69: 3.207118359e-05 | E69: 0.000826686 | F69: 0.004994621051 | G69: 0.016515072 | H69: 0.03893280029 | I69: 0.073513818 | J69: 0.167215104 | K69: 0.24609375
A70: 9 | B70: 6 | C70: 8.1505116e-11 | D70: =IF($A70<>"",BINOMDIST($B70,$A70,D$5,FALSE),"") -> 1.125304688e-06 | E70: =IF($A70<>"",BINOMDIST($B70,$A70,E$5,FALSE),"") -> 6.1236e-05 | F70: 0.0005876024766 | G70: 0.002752512 | H70: 0.008651733398 | I70: 0.021003948 | J70: 0.074317824 | K70: 0.1640625
A71: 9 | B71: 7 | C71: 3.52836e-13 | D71: =IF($A71<>"",BINOMDIST($B71,$A71,D$5,FALSE),"") -> 2.53828125e-08 | E71: =IF($A71<>"",BINOMDIST($B71,$A71,E$5,FALSE),"") -> 2.916e-06 | F71: 4.444052344e-05 | G71: 0.000294912 | H71: 0.001235961914 | I71: 0.003857868 | J71: 0.021233664 | K71: 0.0703125
A72: 9 | B72: 8 | C72: 8.91e-16 | D72: 3.33984375e-10 | E72: 8.1e-08 | F72: 1.960611328e-06 | G72: 1.8432e-05 | H72: 0.0001029968262 | I72: 0.000413343 | J72: 0.003538944 | K72: 0.017578125
A73: 9 | B73: 9 | C73: 1e-18 | D73: 1.953125e-12 | E73: 1e-09 | F73: 3.844335937e-08 | G73: 5.12e-07 | H73: 3.814697266e-06 | I73: 1.9683e-05 | J73: 0.000262144 | K73: 0.001953125
A75: 10 | B75: 0 | C75: =IF($A75<>"",BINOMDIST($B75,$A75,C$5,FALSE),"") -> 0.904382075 | D75: 0.5987369392 | E75: 0.3486784401 | F75: 0.1968744043 | G75: 0.1073741824 | H75: 0.05631351471 | I75: 0.0282475249 | J75: 0.0060466176 | K75: 0.0009765625
A76: 10 | B76: 1 | C76: 0.09135172475 | D76: 0.3151247049 | E76: 0.387420489 | F76: 0.3474254194 | G76: 0.268435456 | H76: 0.1877117157 | I76: 0.121060821 | J76: 0.040310784 | K76: 0.009765625
A77: 10 | B77: 2 | C77: 0.004152351125 | D77: 0.07463479852 | E77: 0.1937102445 | F77: 0.2758966566 | G77: 0.301989888 | H77: 0.2815675735 | I77: 0.2334744405 | J77: 0.120932352 | K77: 0.0439453125
A78: 10 | B78: 3 | C78: 0.0001118478417 | D78: 0.01047505944 | E78: 0.057395628 | F78: 0.1298337208 | G78: 0.201326592 | H78: 0.2502822876 | I78: 0.266827932 | J78: 0.214990848 | K78: 0.1171875
A79: 10 | B79: 4 | C79: 1.977108314e-06 | D79: =IF($A79<>"",BINOMDIST($B79,$A79,D$5,FALSE),"") -> 0.0009648081064 | E79: =IF($A79<>"",BINOMDIST($B79,$A79,E$5,FALSE),"") -> 0.011160261 | F79: 0.04009570788 | G79: 0.088080384 | H79: 0.1459980011 | I79: 0.200120949 | J79: 0.250822656 | K79: 0.205078125
A81: 10 | B81: 5 | C81: =IF($A81<>"",BINOMDIST($B81,$A81,C$5,FALSE),"") -> 2.396494926e-08 | D81: 6.093524883e-05 | E81: 0.0014880348 | F81: 0.008490855786 | G81: 0.0264241152 | H81: 0.05839920044 | I81: 0.1029193452 | J81: 0.2006581248 | K81: 0.24609375
A82: 10 | B82: 6 | C82: 2.017251621e-10 | D82: =IF($A82<>"",BINOMDIST($B82,$A82,D$5,FALSE),"") -> 2.672598633e-06 | E82: =IF($A82<>"",BINOMDIST($B82,$A82,E$5,FALSE),"") -> 0.000137781 | F82: 0.001248655263 | G82: 0.005505024 | H82: 0.01622200012 | I82: 0.036756909 | J82: 0.111476736 | K82: 0.205078125
A83: 10 | B83: 7 | C83: 1.1643588e-12 | D83: =IF($A83<>"",BINOMDIST($B83,$A83,D$5,FALSE),"") -> 8.037890625e-08 | E83: =IF($A83<>"",BINOMDIST($B83,$A83,E$5,FALSE),"") -> 8.748e-06 | F83: 0.0001259148164 | G83: 0.000786432 | H83: 0.003089904785 | I83: 0.009001692 | J83: 0.042467328 | K83: 0.1171875
A84: 10 | B84: 8 | C84: 4.41045e-15 | D84: 1.586425781e-09 | E84: 3.645e-07 | F84: 8.332598145e-06 | G84: 7.3728e-05 | H84: 0.0003862380981 | I84: 0.0014467005 | J84: 0.010616832 | K84: 0.0439453125
A85: 10 | B85: 9 | C85: 9.9e-18 | D85: 1.85546875e-11 | E85: 9e-09 | F85: 3.267685547e-07 | G85: 4.096e-06 | H85: 2.861022949e-05 | I85: 0.000137781 | J85: 0.001572864 | K85: 0.009765625
A87: 10 | B87: 10 | C87: 1e-20 | D87: 9.765625e-14 | E87: 1e-10 | F87: 5.766503906e-09 | G87: 1.024e-07 | H87: 9.536743164e-07 | I87: 5.9049e-06 | J87: 0.0001048576 | K87: 0.0009765625

Sheet T3 Fsn(z)
A1: Tabelle 3: Standardnormalverteilung | N1: Verteilungsfunktion | P1: Tabelle 3: Standardnormalverteilung | AC1: Verteilungsfunktion
B2: FSN (z) | Q2: FSN (z)
A3: z | B3: FSN (-z) | C3: FSN (z) | D3: D(z) | F3: z | G3: FSN (-z) | H3: FSN (z) | I3: D(z) | K3: z | L3: FSN (-z) | M3: FSN (z) | N3: D(z) | P3: z | Q3: FSN (-z) | R3: FSN (z) | S3: D(z) | U3: z | V3: FSN (-z) | W3: FSN (z) | X3: D(z) | Z3: z | AA3: FSN (-z) | AB3: FSN (z) | AC3: D(z)
A4: 0 | B4: =1-C4 -> 0.5 | C4: =NORMSDIST(A4) -> 0.5 | D4: =C4-B4 -> 0 | F4: 0.5 | G4: =1-H4 -> 0.3085375387 | H4: =NORMSDIST(F4) -> 0.6914624613 | I4: =H4-G4 -> 0.3829249225 | K4: 1 | L4: =1-M4 -> 0.1586552539 | M4: =NORMSDIST(K4) -> 0.8413447461 | N4: =M4-L4 -> 0.6826894921 | P4: 1.5 | Q4: =1-R4 -> 0.06680720127 | R4: =NORMSDIST(P4) -> 0.9331927987 | S4: =R4-Q4 -> 0.8663855975 | U4: 2 | V4: =1-W4 -> 0.02275013195 | W4: =NORMSDIST(U4) -> 0.9772498681 | X4: =W4-V4 -> 0.9544997361 | Z4: 2.5 | AA4: =1-AB4 -> 0.006209665326 | AB4: =NORMSDIST(Z4) -> 0.9937903347 | AC4: =AB4-AA4 -> 0.9875806693
A5: =A4+0.01 -> 0.01 | B5: =1-C5 -> 0.4960106437 | C5: =NORMSDIST(A5) -> 0.5039893563 | D5: =C5-B5 -> 0.007978712629 | F5: =F4+0.01 -> 0.51 | G5: =1-H5 -> 0.3050257309 | H5: =NORMSDIST(F5) -> 0.6949742691 | I5: =H5-G5 -> 0.3899485382 | K5: =K4+0.01 -> 1.01 | L5: =1-M5 -> 0.156247645 | M5: =NORMSDIST(K5) -> 0.843752355 | N5: =M5-L5 -> 0.68750471 | P5: =P4+0.01 -> 1.51 | Q5: =1-R5 -> 0.06552171209 | R5: =NORMSDIST(P5) -> 0.9344782879 | S5: =R5-Q5 -> 0.8689565758 | U5: =U4+0.01 -> 2.01 | V5: =1-W5 -> 0.02221559443 | W5: =NORMSDIST(U5) -> 0.9777844056 | X5: =W5-V5 -> 0.9555688111 | Z5: =Z4+0.01 -> 2.51 | AA5: =1-AB5 -> 0.00603655808 | AB5: =NORMSDIST(Z5) -> 0.9939634419 | AC5: =AB5-AA5 -> 0.9879268838
A6: =A5+0.01 -> 0.02 | B6: =1-C6 -> 0.4920216863 | C6: =NORMSDIST(A6) -> 0.5079783137 | D6: =C6-B6 -> 0.01595662743 | F6: =F5+0.01 -> 0.52 | G6: =1-H6 -> 0.3015317875 | H6: =NORMSDIST(F6) -> 0.6984682125 | I6: =H6-G6 -> 0.3969364249 | K6: =K5+0.01 -> 1.02 | L6: =1-M6 -> 0.1538642304 | M6: =NORMSDIST(K6) -> 0.8461357696 | N6: =M6-L6 -> 0.6922715393 | P6: =P5+0.01 -> 1.52 | Q6: =1-R6 -> 0.06425548782 | R6: =NORMSDIST(P6) -> 0.9357445122 | S6: =R6-Q6 -> 0.8714890244 | U6: =U5+0.01 -> 2.02 | V6: =1-W6 -> 0.02169169377 | W6: =NORMSDIST(U6) -> 0.9783083062 | X6: =W6-V6 -> 0.9566166125 | Z6: =Z5+0.01 -> 2.52 | AA6: =1-AB6 -> 0.005867741715 | AB6: =NORMSDIST(Z6) -> 0.9941322583 | AC6: =AB6-AA6 -> 0.9882645166
A7: 0.03 | B7: 0.4880335266 | C7: 0.5119664734 | D7: 0.02393294683 | F7: 0.53 | G7: 0.2980559654 | H7: 0.7019440346 | I7: 0.4038880692 | K7: 1.03 | L7: 0.1515050028 | M7: 0.8484949972 | N7: 0.6969899944 | P7: 1.53 | Q7: 0.06300836446 | R7: 0.9369916355 | S7: 0.8739832711 | U7: 2.03 | V7: 0.02117826964 | W7: 0.9788217304 | X7: 0.9576434607 | Z7: 2.53 | AA7: 0.005703126333 | AB7: 0.9942968737 | AC7: 0.9885937473
A8: 0.04 | B8: 0.4840465631 | C8: 0.5159534369 | D8: 0.03190687371 | F8: 0.54 | G8: 0.2945985162 | H8: 0.7054014838 | I8: 0.4108029676 | K8: 1.04 | L8: 0.1491699503 | M8: 0.8508300497 | N8: 0.7016600993 | P8: 1.54 | Q8: 0.06178017671 | R8: 0.9382198233 | S8: 0.8764396466 | U8: 2.04 | V8: 0.02067516287 | W8: 0.9793248371 | X8: 0.9586496743 | Z8: 2.54 | AA8: 0.005542623443 | AB8: 0.9944573766 | AC8: 0.9889147531
A9: 0.05 | B9: 0.4800611942 | C9: 0.5199388058 | D9: 0.03987761168 | F9: 0.55 | G9: 0.2911596868 | H9: 0.7088403132 | I9: 0.4176806264 | K9: 1.05 | L9: 0.1468590564 | M9: 0.8531409436 | N9: 0.7062818872 | P9: 1.55 | Q9: 0.060570758 | R9: 0.939429242 | S9: 0.878858484 | U9: 2.05 | V9: 0.02018221541 | W9: 0.9798177846 | X9: 0.9596355692 | Z9: 2.55 | AA9: 0.005386145954 | AB9: 0.994613854 | AC9: 0.9892277081
A10: 0.06 | B10: 0.4760778173 | C10: 0.5239221827 | D10: 0.04784436531 | F10: 0.56 | G10: 0.2877397188 | H10: 0.7122602812 | I10: 0.4245205623 | K10: 1.06 | L10: 0.1445722997 | M10: 0.8554277003 | N10: 0.7108554007 | P10: 1.56 | Q10: 0.05937994059 | R10: 0.9406200594 | S10: 0.8812401188 | U10: 2.06 | V10: 0.01969927041 | W10: 0.9803007296 | X10: 0.9606014592 | Z10: 2.56 | AA10: 0.005233608164 | AB10: 0.9947663918 | AC10: 0.9895327837
A11: 0.07 | B11: 0.4720968298 | C11: 0.5279031702 | D11: 0.05580634036 | F11: 0.57 | G11: 0.284338849 | H11: 0.715661151 | I11: 0.4313223019 | K11: 1.07 | L11: 0.1423096544 | M11: 0.8576903456 | N11: 0.7153806913 | P11: 1.57 | Q11: 0.05820755564 | R11: 0.9417924444 | S11: 0.8835848887 | U11: 2.07 | V11: 0.01922617223 | W11: 0.9807738278 | X11: 0.9615476555 | Z11: 2.57 | AA11: 0.005084925749 | AB11: 0.9949150743 | AC11: 0.9898301485
A12: 0.08 | B12: 0.468118628 | C12: 0.531881372 | D12: 0.06376274403 | F12: 0.58 | G12: 0.2809573089 | H12: 0.7190426911 | I12: 0.4380853822 | K12: 1.08 | L12: 0.1400710901 | M12: 0.8599289099 | N12: 0.7198578198 | P12: 1.58 | Q12: 0.05705343324 | R12: 0.9429465668 | S12: 0.8858931335 | U12: 2.08 | V12: 0.01876276643 | W12: 0.9812372336 | X12: 0.9624744671 | Z12: 2.58 | AA12: 0.004940015758 | AB12: 0.9950599842 | AC12: 0.9901199685
A13: 0.09 | B13: 0.4641436074 | C13: 0.5358563926 | D13: 0.07171278517 | F13: 0.59 | G13: 0.2775953248 | H13: 0.7224046752 | I13: 0.4448093505 | K13: 1.09 | L13: 0.137856572 | M13: 0.862143428 | N13: 0.7242868559 | P13: 1.59 | Q13: 0.05591740252 | R13: 0.9440825975 | S13: 0.888165195 | U13: 2.09 | V13: 0.01830889985 | W13: 0.9816911001 | X13: 0.9633822003 | Z13: 2.59 | AA13: 0.004798796597 | AB13: 0.9952012034 | AC13: 0.9904024068
A14: 0.1 | B14: 0.4601721627 | C14: 0.5398278373 | D14: 0.07965567455 | F14: 0.6 | G14: 0.2742531178 | H14: 0.7257468822 | I14: 0.4514937645 | K14: 1.1 | L14: 0.1356660609 | M14: 0.8643339391 | N14: 0.7286678781 | P14: 1.6 | Q14: 0.0547992917 | R14: 0.9452007083 | S14: 0.8904014166 | U14: 2.1 | V14: 0.01786442056 | W14: 0.9821355794 | X14: 0.9642711589 | Z14: 2.6 | AA14: 0.004661188024 | AB14: 0.995338812 | AC14: 0.990677624
A15: 0.11 | B15: 0.4562046875 | C15: 0.5437953125 | D15: 0.08759062508 | F15: 0.61 | G15: 0.2709309038 | H15: 0.7290690962 | I15: 0.4581381924 | K15: 1.11 | L15: 0.1334995132 | M15: 0.8665004868 | N15: 0.7330009735 | P15: 1.61 | Q15: 0.05369892815 | R15: 0.9463010719 | S15: 0.8926021437 | U15: 2.11 | V15: 0.01742917794 | W15: 0.9825708221 | X15: 0.9651416441 | Z15: 2.61 | AA15: 0.004527111133 | AB15: 0.9954728889 | AC15: 0.9909457777
A16: 0.12 | B16: 0.452241574 | C16: 0.547758426 | D16: 0.09551685204 | F16: 0.62 | G16: 0.2676288935 | H16: 0.7323711065 | I16: 0.4647422131 | K16: 1.12 | L16: 0.131356881 | M16: 0.868643119 | N16: 0.7372862379 | P16: 1.62 | Q16: 0.05261613845 | R16: 0.9473838615 | S16: 0.8947677231 | U16: 2.12 | V16: 0.01700302265 | W16: 0.9829969774 | X16: 0.9659939547 | Z16: 2.62 | AA16: 0.004396488348 | AB16: 0.9956035117 | AC16: 0.9912070233
A17: 0.13 | B17: 0.4482832133 | C17: 0.5517167867 | D17: 0.1034335733 | F17: 0.63 | G17: 0.2643472921 | H17: 0.7356527079 | I17: 0.4713054158 | K17: 1.13 | L17: 0.1292381122 | M17: 0.8707618878 | N17: 0.7415237755 | P17: 1.63 | Q17: 0.05155074849 | R17: 0.9484492515 | S17: 0.896898503 | U17: 2.13 | V17: 0.01658580668 | W17: 0.9834141933 | X17: 0.9668283866 | Z17: 2.63 | AA17: 0.004269243409 | AB17: 0.9957307566 | AC17: 0.9914615132
A18: 0.14 | B18: 0.4443299952 | C18: 0.5556700048 | D18: 0.1113400096 | F18: 0.64 | G18: 0.2610862997 | H18: 0.7389137003 | I18: 0.4778274006 | K18: 1.14 | L18: 0.1271431506 | M18: 0.8728568494 | N18: 0.7457136989 | P18: 1.64 | Q18: 0.05050258347 | R18: 0.9494974165 | S18: 0.8989948331 | U18: 2.14 | V18: 0.01617738337 | W18: 0.9838226166 | X18: 0.9676452333 | Z18: 2.64 | AA18: 0.004145301361 | AB18: 0.9958546986 | AC18: 0.9917093973
A19: 0.15 | B19: 0.4403823076 | C19: 0.5596176924 | D19: 0.1192353847 | F19: 0.65 | G19: 0.2578461108 | H19: 0.7421538892 | I19: 0.4843077784 | K19: 1.15 | L19: 0.1250719356 | M19: 0.8749280644 | N19: 0.7498561287 | P19: 1.65 | Q19: 0.04947146803 | R19: 0.950528532 | S19: 0.9010570639 | U19: 2.15 | V19: 0.01577760739 | W19: 0.9842223926 | X19: 0.9684447852 | Z19: 2.65 | AA19: 0.004024588543 | AB19: 0.9959754115 | AC19: 0.9919508229
A20: 0.16 | B20: 0.4364405371 | C20: 0.5635594629 | D20: 0.1271189258 | F20: 0.66 | G20: 0.2546269147 | H20: 0.7453730853 | I20: 0.4907461707 | K20: 1.16 | L20: 0.1230244031 | M20: 0.8769755969 | N20: 0.7539511939 | P20: 1.66 | Q20: 0.04845722627 | R20: 0.9515427737 | S20: 0.9030855475 | U20: 2.16 | V20: 0.01538633478 | W20: 0.9846136652 | X20: 0.9692273304 | Z20: 2.66 | AA20: 0.003907032575 | AB20: 0.9960929674 | AC20: 0.9921859349
A21: 0.17 | B21: 0.4325050683 | C21: 0.5674949317 | D21: 0.1349898634 | F21: 0.67 | G21: 0.2514288951 | H21: 0.7485711049 | I21: 0.4971422098 | K21: 1.17 | L21: 0.1210004844 | M21: 0.8789995156 | N21: 0.7579990312 | P21: 1.67 | Q21: 0.0474596818 | R21: 0.9525403182 | S21: 0.9050806364 | U21: 2.17 | V21: 0.01500342297 | W21: 0.984996577 | X21: 0.9699931541 | Z21: 2.67 | AA21: 0.003792562348 | AB21: 0.9962074377 | AC21: 0.9924148753
A22: 0.18 | B22: 0.4285762841 | C22: 0.5714237159 | D22: 0.1428474318 | F22: 0.68 | G22: 0.2482522305 | H22: 0.7517477695 | I22: 0.5034955391 | K22: 1.18 | L22: 0.1190001075 | M22: 0.8809998925 | N22: 0.7619997851 | P22: 1.68 | Q22: 0.04647865786 | R22: 0.9535213421 | S22: 0.9070426843 | U22: 2.18 | V22: 0.01462873078 | W22: 0.9853712692 | X22: 0.9707425384 | Z22: 2.68 | AA22: 0.003681108009 | AB22: 0.996318892 | AC22: 0.992637784
A23: 0.19 | B23: 0.4246545653 | C23: 0.5753454347 | D23: 0.1506908695 | F23: 0.69 | G23: 0.2450970937 | H23: 0.7549029063 | I23: 0.5098058127 | K23: 1.19 | L23: 0.117023196 | M23: 0.882976804 | N23: 0.765953608 | P23: 1.69 | Q23: 0.04551397732 | R23: 0.9544860227 | S23: 0.9089720454 | U23: 2.19 | V23: 0.01426211841 | W23: 0.9857378816 | X23: 0.9714757632 | Z23: 2.69 | AA23: 0.003572600952 | AB23: 0.996427399 | AC23: 0.9928547981
A24: 0.2 | B24: 0.4207402906 | C24: 0.5792597094 | D24: 0.1585194189 | F24: 0.7 | G24: 0.2419636522 | H24: 0.7580363478 | I24: 0.5160726956 | K24: 1.2 | L24: 0.1150696702 | M24: 0.8849303298 | N24: 0.7698606596 | P24: 1.7 | Q24: 0.04456546276 | R24: 0.9554345372 | S24: 0.9108690745 | U24: 2.2 | V24: 0.01390344751 | W24: 0.9860965525 | X24: 0.972193105 | Z24: 2.7 | AA24: 0.003466973803 | AB24: 0.9965330262 | AC24: 0.9930660524
A25: 0.21 | B25: 0.4168338365 | C25: 0.5831661635 | D25: 0.166332327 | F25: 0.71 | G25: 0.2388520681 | H25: 0.7611479319 | I25: 0.5222958638 | K25: 1.21 | L25: 0.1131394464 | M25: 0.8868605536 | N25: 0.7737211071 | P25: 1.71 | Q25: 0.04363293652 | R25: 0.9563670635 | S25: 0.912734127 | U25: 2.21 | V25: 0.01355258115 | W25: 0.9864474189 | X25: 0.9728948377 | Z25: 2.71 | AA25: 0.003364160407 | AB25: 0.9966358396 | AC25: 0.9932716792
A26: 0.22 | B26: 0.4129355774 | C26: 0.5870644226 | D26: 0.1741288453 | F26: 0.72 | G26: 0.2357624978 | H26: 0.7642375022 | I26: 0.5284750044 | K26: 1.22 | L26: 0.1112324374 | M26: 0.8887675626 | N26: 0.7775351251 | P26: 1.72 | Q26: 0.04271622079 | R26: 0.9572837792 | S26: 0.9145675584 | U26: 2.22 | V26: 0.01320938381 | W26: 0.9867906162 | X26: 0.9735812324 | Z26: 2.72 | AA26: 0.003264095816 | AB26: 0.9967359042 | AC26: 0.9934718084
A27: 0.23 | B27: 0.4090458849 | C27: 0.5909541151 | D27: 0.1819082303 | F27: 0.73 | G27: 0.2326950923 | H27: 0.7673049077 | I27: 0.5346098154 | K27: 1.23 | L27: 0.1093485524 | M27: 0.8906514476 | N27: 0.7813028951 | P27: 1.73 | Q27: 0.04181513761 | R27: 0.9581848624 | S27: 0.9163697248 | U27: 2.23 | V27: 0.01287372144 | W27: 0.9871262786 | X27: 0.9742525571 | Z27: 2.73 | AA27: 0.003166716277 | AB27: 0.9968332837 | AC27: 0.9936665674
A28: 0.24 | B28: 0.4051651283 | C28: 0.5948348717 | D28: 0.1896697434 | F28: 0.74 | G28: 0.2296499972 | H28: 0.7703500028 | I28: 0.5407000057 | K28: 1.24 | L28: 0.1074876971 | M28: 0.8925123029 | N28: 0.7850246059 | P28: 1.74 | Q28: 0.04092950898 | R28: 0.959070491 | S28: 0.918140982 | U28: 2.24 | V28: 0.01254546144 | W28: 0.9874545386 | X28: 0.9749090771 | Z28: 2.74 | AA28: 0.003071959219 | AB28: 0.9969280408 | AC28: 0.9938560816
A29: 0.25 | B29: 0.4012936743 | C29: 0.5987063257 | D29: 0.1974126514 | F29: 0.75 | G29: 0.2266273524 | H29: 0.7733726476 | I29: 0.5467452952 | K29: 1.25 | L29: 0.1056497737 | M29: 0.8943502263 | N29: 0.7887004527 | P29: 1.75 | Q29: 0.04005915686 | R29: 0.9599408431 | S29: 0.9198816863 | U29: 2.25 | V29: 0.01222447266 | W29: 0.9877755273 | X29: 0.9755510547 | Z29: 2.75 | AA29: 0.002979763235 | AB29: 0.9970202368 | AC29: 0.9940404735
A30: 0.26 | B30: 0.3974318868 | C30: 0.6025681132 | D30: 0.2051362264 | F30: 0.76 | G30: 0.2236272924 | H30: 0.7763727076 | I30: 0.5527454151 | K30: 1.26 | L30: 0.1038346811 | M30: 0.8961653189 | N30: 0.7923306378 | P30: 1.76 | Q30: 0.03920390329 | R30: 0.9607960967 | S30: 0.9215921934 | U30: 2.26 | V30: 0.01191062542 | W30: 0.9880893746 | X30: 0.9761787492 | Z30: 2.76 | AA30: 0.002890068076 | AB30: 0.9971099319 | AC30: 0.9942198638
A31: 0.27 | B31: 0.3935801268 | C31: 0.6064198732 | D31: 0.2128397464 | F31: 0.77 | G31: 0.2206499463 | H31: 0.7793500537 | I31: 0.5587001073 | K31: 1.27 | L31: 0.1020423151 | M31: 0.8979576849 | N31: 0.7959153699 | P31: 1.77 | Q31: 0.03836357036 | R31: 0.9616364296 | S31: 0.9232728593 | U31: 2.27 | V31: 0.01160379152 | W31: 0.9883962085 | X31: 0.976792417 | Z31: 2.77 | AA31: 0.002802814633 | AB31: 0.9971971854 | AC31: 0.9943943707
A32: 0.28 | B32: 0.3897387524 | C32: 0.6102612476 | D32: 0.2205224951 | F32: 0.78 | G32: 0.2176954376 | H32: 0.7823045624 | I32: 0.5646091248 | K32: 1.28 | L32: 0.100272568 | M32: 0.899727432 | N32: 0.7994548641 | P32: 1.78 | Q32: 0.03753798035 | R32: 0.9624620197 | S32: 0.9249240393 | U32: 2.28 | V32: 0.01130384424 | W32: 0.9886961558 | X32: 0.9773923115 | Z32: 2.78 | AA32: 0.002717944923 | AB32: 0.9972820551 | AC32: 0.9945641102
A33: 0.29 | B33: 0.3859081188 | C33: 0.6140918812 | D33: 0.2281837624 | F33: 0.79 | G33: 0.2147638842 | H33: 0.7852361158 | I33: 0.5704722317 | K33: 1.29 | L33: 0.09852532905 | M33: 0.901474671 | N33: 0.8029493419 | P33: 1.79 | Q33: 0.0367269557 | R33: 0.9632730443 | S33: 0.9265460886 | U33: 2.29 | V33: 0.01101065832 | W33: 0.9889893417 | X33: 0.9779786834 | Z33: 2.79 | AA33: 0.002635402078 | AB33: 0.9973645979 | AC33: 0.9947291958
A34: 0.3 | B34: 0.3820885778 | C34: 0.6179114222 | D34: 0.2358228444 | F34: 0.8 | G34: 0.2118553986 | H34: 0.7881446014 | I34: 0.5762892028 | K34: 1.3 | L34: 0.09680048459 | M34: 0.9031995154 | N34: 0.8063990308 | P34: 1.8 | Q34: 0.03593031911 | R34: 0.9640696809 | S34: 0.9281393618 | U34: 2.3 | V34: 0.01072411002 | W34: 0.98927589 | X34: 0.97855178 | Z34: 2.8 | AA34: 0.00255513033 | AB34: 0.9974448697 | AC34: 0.9948897393
A35: 0.31 | B35: 0.3782804782 | C35: 0.6217195218 | D35: 0.2434390436 | F35: 0.81 | G35: 0.2089700879 | H35: 0.7910299121 | I35: 0.5820598243 | K35: 1.31 | L35: 0.0950979178 | M35: 0.9049020822 | N35: 0.8098041644 | P35: 1.81 | Q35: 0.03514789358 | R35: 0.9648521064 | S35: 0.9297042128 | U35: 2.31 | V35: 0.01044407706 | W35: 0.9895559229 | X35: 0.9791118459 | Z35: 2.81 | AA35: 0.002477074999 | AB35: 0.997522925 | AC35: 0.99504585
A36: 0.32 | B36: 0.3744841653 | C36: 0.6255158347 | D36: 0.2510316694 | F36: 0.82 | G36: 0.2061080536 | H36: 0.7938919464 | I36: 0.5877838928 | K36: 1.32 | L36: 0.09341750899 | M36: 0.906582491 | N36: 0.813164982 | P36: 1.82 | Q36: 0.03437950245 | R36: 0.9656204976 | S36: 0.9312409951 | U36: 2.32 | V36: 0.01017043867 | W36: 0.9898295613 | X36: 0.9796591227 | Z36: 2.82 | AA36: 0.002401182474 | AB36: 0.9975988175 | AC36: 0.9951976351
A37: 0.33 | B37: 0.3706999811 | C37: 0.6293000189 | D37: 0.2586000379 | F37: 0.83 | G37: 0.2032693918 | H37: 0.7967306082 | I37: 0.5934612163 | K37: 1.33 | L37: 0.09175913565 | M37: 0.9082408643 | N37: 0.8164817287 | P37: 1.83 | Q37: 0.03362496942 | R37: 0.9663750306 | S37: 0.9327500612 | U37: 2.33 | V37: 0.009903075559 | W37: 0.9900969244 | X37: 0.9801938489 | Z37: 2.83 | AA37: 0.002327400207 | AB37: 0.9976725998 | AC37: 0.9953451996
A38: 0.34 | B38: 0.366928264 | C38: 0.633071736 | D38: 0.2661434721 | F38: 0.84 | G38: 0.2004541933 | H38: 0.7995458067 | I38: 0.5990916135 | K38: 1.34 | L38: 0.09012267246 | M38: 0.9098773275 | N38: 0.8197546551 | P38: 1.84 | Q38: 0.03288411866 | R38: 0.9671158813 | S38: 0.9342317627 | U38: 2.34 | V38: 0.009641869945 | W38: 0.9903581301 | X38: 0.9807162601 | Z38: 2.84 | AA38: 0.002255676692 | AB38: 0.9977443233 | AC38: 0.9954886466
A39: 0.35 | B39: 0.3631693488 | C39: 0.6368306512 | D39: 0.2736613024 | F39: 0.85 | G39: 0.1976625431 | H39: 0.8023374569 | I39: 0.6046749138 | K39: 1.35 | L39: 0.08850799144 | M39: 0.9114920086 | N39: 0.8229840171 | P39: 1.85 | Q39: 0.0321567748 | R39: 0.9678432252 | S39: 0.9356864504 | U39: 2.35 | V39: 0.009386705535 | W39: 0.9906132945 | X39: 0.9812265889 | Z39: 2.85 | AA39: 0.002185961455 | AB39: 0.9978140385 | AC39: 0.9956280771
A40: 0.36 | B40: 0.3594235668 | C40: 0.6405764332 | D40: 0.2811528664 | F40: 0.86 | G40: 0.1948945213 | H40: 0.8051054787 | I40: 0.6102109575 | K40: 1.36 | L40: 0.08691496195 | M40: 0.9130850381 | N40: 0.8261700761 | P40: 1.86 | Q40: 0.03144276298 | R40: 0.968557237 | S40: 0.937114474 | U40: 2.36 | V40: 0.009137467531 | W40: 0.9908625325 | X40: 0.9817250649 | Z40: 2.86 | AA40: 0.00211820504 | AB40: 0.997881795 | AC40: 0.9957635899
A41: 0.37 | B41: 0.3556912452 | C41: 0.6443087548 | D41: 0.2886175096 | F41: 0.87 | G41: 0.1921502021 | H41: 0.8078497979 | I41: 0.6156995958 | K41: 1.37 | L41: 0.08534345082 | M41: 0.9146565492 | N41: 0.8293130984 | P41: 1.87 | Q41: 0.03074190893 | R41: 0.9692580911 | S41: 0.9385161821 | U41: 2.37 | V41: 0.00889404263 | W41: 0.9911059574 | X41: 0.9822119147 | Z41: 2.87 | AA41: 0.002052358995 | AB41: 0.997947641 | AC41: 0.995895282
A42: 0.38 | B42: 0.3519727076 | C42: 0.6480272924 | D42: 0.2960545848 | F42: 0.88 | G42: 0.1894296548 | H42: 0.8105703452 | I42: 0.6211406904 | K42: 1.38 | L42: 0.08379332242 | M42: 0.9162066776 | N42: 0.8324133552 | P42: 1.88 | Q42: 0.03005403896 | R42: 0.969945961 | S42: 0.9398919221 | U42: 2.38 | V42: 0.008656319026 | W42: 0.991343681 | X42: 0.9826873619 | Z42: 2.88 | AA42: 0.001988375855 | AB42: 0.9980116241 | AC42: 0.9960232483
A43: 0.39 | B43: 0.3482682735 | C43: 0.6517317265 | D43: 0.3034634531 | F43: 0.89 | G43: 0.186732943 | H43: 0.813267057 | I43: 0.6265341139 | K43: 1.39 | L43: 0.08226443868 | M43: 0.9177355613 | N43: 0.8354711226 | P43: 1.89 | Q43: 0.02937898004 | R43: 0.97062102 | S43: 0.9412420399 | U43: 2.39 | V43: 0.008424186399 | W43: 0.9915758136 | X43: 0.9831516272 | Z43: 2.89 | AA43: 0.001926209132 | AB43: 0.9980737909 | AC43: 0.9961475817
A44: 0.4 | B44: 0.3445782584 | C44: 0.6554217416 | D44: 0.3108434832 | F44: 0.9 | G44: 0.1840601253 | H44: 0.8159398747 | I44: 0.6318797493 | K44: 1.4 | L44: 0.08075665923 | M44: 0.9192433408 | N44: 0.8384866815 | P44: 1.9 | Q44: 0.02871655982 | R44: 0.9712834402 | S44: 0.9425668804 | U44: 2.4 | V44: 0.008197535925 | W44: 0.9918024641 | X44: 0.9836049282 | Z44: 2.9 | AA44: 0.0018658133 | AB44: 0.9981341867 | AC44: 0.9962683734
A45: 0.41 | B45: 0.3409029738 | C45: 0.6590970262 | D45: 0.3181940525 | F45: 0.91 | G45: 0.1814112549 | H45: 0.8185887451 | I45: 0.6371774902 | K45: 1.41 | L45: 0.07926984145 | M45: 0.9207301585 | N45: 0.8414603171 | P45: 1.91 | Q45: 0.02806660666 | R45: 0.9719333933 | S45: 0.9438667867 | U45: 2.41 | V45: 0.007976260261 | W45: 0.9920237397 | X45: 0.9840474795 | Z45: 2.91 | AA45: 0.001807143781 | AB45: 0.9981928562 | AC45: 0.9963857124
A46: 0.42 | B46: 0.3372427268 | C46: 0.6627572732 | D46: 0.3255145463 | F46: 0.92 | G46: 0.1787863796 | H46: 0.8212136204 | I46: 0.6424272408 | K46: 1.42 | L46: 0.07780384053 | M46: 0.9221961595 | N46: 0.8443923189 | P46: 1.92 | Q46: 0.0274289497 | R46: 0.9725710503 | S46: 0.9451421006 | U46: 2.42 | V46: 0.007760253551 | W46: 0.9922397464 | X46: 0.9844794929 | Z46: 2.92 | AA46: 0.001750156929 | AB46: 0.9982498431 | AC46: 0.9964996861
A47: 0.43 | B47: 0.3335978206 | C47: 0.6664021794 | D47: 0.3328043588 | F47: 0.93 | G47: 0.1761855422 | H47: 0.8238144578 | I47: 0.6476289155 | K47: 1.43 | L47: 0.07635850954 | M47: 0.9236414905 | N47: 0.8472829809 | P47: 1.93 | Q47: 0.02680341888 | R47: 0.9731965811 | S47: 0.9463931622 | U47: 2.43 | V47: 0.007549411416 | W47: 0.9924505886 | X47: 0.9849011772 | Z47: 2.93 | AA47: 0.001694810019 | AB47: 0.99830519 | AC47: 0.99661038
A48: 0.44 | B48: 0.3299685537 | C48: 0.6700314463 | D48: 0.3400628927 | F48: 0.94 | G48: 0.1736087803 | H48: 0.8263912197 | I48: 0.6527824393 | K48: 1.44 | L48: 0.07493369953 | M48: 0.9250663005 | N48: 0.8501326009 | P48: 1.94 | Q48: 0.02618984494 | R48: 0.9738101551 | S48: 0.9476203101 | U48: 2.44 | V48: 0.007343630955 | W48: 0.992656369 | X48: 0.9853127381 | Z48: 2.94 | AA48: 0.001641061234 | AB48: 0.9983589388 | AC48: 0.9967178775
A49: 0.45 | B49: 0.3263552203 | C49: 0.6736447797 | D49: 0.3472895594 | F49: 0.95 | G49: 0.1710561263 | H49: 0.8289438737 | I49: 0.6578877474 | K49: 1.45 | L49: 0.07352925961 | M49: 0.9264707404 | N49: 0.8529414808 | P49: 1.95 | Q49: 0.02558805952 | R49: 0.9744119405 | S49: 0.948823881 | U49: 2.45 | V49: 0.007142810735 | W49: 0.9928571893 | X49: 0.9857143785 | Z49: 2.95 | AA49: 0.001588869647 | AB49: 0.9984111304 | AC49: 0.9968222607
A50: 0.46 | B50: 0.3227581103 | C50: 0.6772418897 | D50: 0.3544837795 | F50: 0.96 | G50: 0.1685276075 | H50: 0.8314723925 | I50: 0.6629447851 | K50: 1.46 | L50: 0.07214503697 | M50: 0.927854963 | N50: 0.8557099261 | P50: 1.96 | Q50: 0.02499789515 | R50: 0.9750021049 | S50: 0.9500042097 | U50: 2.46 | V50: 0.006946850789 | W50: 0.9930531492 | X50: 0.9861062984 | Z50: 2.96 | AA50: 0.001538195212 | AB50: 0.9984618048 | AC50: 0.9969236096
A51: 0.47 | B51: 0.3191775088 | C51: 0.6808224912 | D51: 0.3616449824 | F51: 0.97 | G51: 0.1660232461 | H51: 0.8339767539 | I51: 0.6679535079 | K51: 1.47 | L51: 0.07078087699 | M51: 0.929219123 | N51: 0.858438246 | P51: 1.97 | Q51: 0.02441918528 | R51: 0.9755808147 | S51: 0.9511616294 | U51: 2.47 | V51: 0.006755652607 | W51: 0.9932443474 | X51: 0.9864886948 | Z51: 2.97 | AA51: 0.001488998745 | AB51: 0.9985110013 | AC51: 0.9970220025
A52: 0.48 | B52: 0.3156136965 | C52: 0.6843863035 | D52: 0.368772607 | F52: 0.98 | G52: 0.1635430593 | H52: 0.8364569407 | I52: 0.6729138813 | K52: 1.48 | L52: 0.06943662333 | M52: 0.9305633767 | N52: 0.8611267533 | P52: 1.98 | Q52: 0.02385176434 | R52: 0.9761482357 | S52: 0.9522964713 | U52: 2.48 | V52: 0.006569119136 | W52: 0.9934308809 | X52: 0.9868617617 | Z52: 2.98 | AA52: 0.001441241917 | AB52: 0.9985587581 | AC52: 0.9971175162
A53: 0.49 | B53: 0.3120669494 | C53: 0.6879330506 | D53: 0.3758661012 | F53: 0.99 | G53: 0.1610870595 | H53: 0.8389129405 | I53: 0.677825881 | K53: 1.49 | L53: 0.06811211797 | M53: 0.931887882 | N53: 0.8637757641 | P53: 1.99 | Q53: 0.02329546775 | R53: 0.9767045322 | S53: 0.9534090645 | U53: 2.49 | V53: 0.006387154765 | W53: 0.9936128452 | X53: 0.9872256905 | Z53: 2.99 | AA53: 0.001394887235 | AB53: 0.9986051128 | AC53: 0.9972102255
A54: 0.5 | B54: 0.3085375387 | C54: 0.6914624613 | D54: 0.3829249225 | F54: 1 | G54: 0.1586552539 | H54: 0.8413447461 | I54: 0.6826894921 | K54: 1.5 | L54: 0.06680720127 | M54: 0.9331927987 | N54: 0.8663855975 | P54: 2 | Q54: 0.02275013195 | R54: 0.9772498681 | S54: 0.9544997361 | U54: 2.5 | V54: 0.006209665326 | W54: 0.9937903347 | X54: 0.9875806693 | Z54: 3 | AA54: 0.001349898032 | AB54: 0.998650102 | AC54: 0.9973002039

Sheet T3 - Abbildung Normalverteilung
A1: Theoretische Verteilungen -- Normalverteilung und Standardnormalverteilung
A2: Mittelwert: | C2: 217
A3: Standardabw.: | C3: 31
A5: X | B5: Z | C5: f(z) | D5: F(z)
A6: =$C$2+B6*$C$3 -> 139.5 | B6: =B7-0.25 -> -2.5 | C6: =NORMDIST(B6,0,1,0) -> 0.01752830049 | D6: =NORMSDIST(B6) -> 0.006209665326
A7: 147.25 | B7: -2.25 | C7: 0.03173965184 | D7: 0.01222447266
A8: 155 | B8: -2 | C8: 0.05399096651 | D8: 0.02275013195
A9: 162.75 | B9: -1.75 | C9: 0.08627731883 | D9: 0.04005915686
A10: 170.5 | B10: -1.5 | C10: 0.1295175957 | D10: 0.06680720127
A11: 178.25 | B11: -1.25 | C11: 0.1826490854 | D11: 0.1056497737
A12: 186 | B12: -1 | C12: 0.2419707245 | D12: 0.1586552539
A13: 193.75 | B13: -0.75 | C13: 0.3011374322 | D13: 0.2266273524
A14: 201.5 | B14: -0.5 | C14: 0.3520653268 | D14: 0.3085375387
A15: 209.25 | B15: =B16-0.25 -> -0.25 | C15: 0.3866681168 | D15: 0.4012936743
A16: =$C$2 -> 217 | B16: =(A16-$C$2)/$C$3 -> 0 | C16: 0.3989422804 | D16: 0.5
A17: =$C$2+B17*$C$3 -> 224.75 | B17: =B16+0.25 -> 0.25 | C17: 0.3866681168 | D17: 0.5987063257
A18: 232.5 | B18: =B17+0.25 -> 0.5 | C18: 0.3520653268 | D18: 0.6914624613
A19: 240.25 | B19: 0.75 | C19: 0.3011374322 | D19: 0.7733726476
A20: 248 | B20: 1 | C20: 0.2419707245 | D20: 0.8413447461
A21: 255.75 | B21: 1.25 | C21: 0.1826490854 | D21: 0.8943502263
A22: 263.5 | B22: 1.5 | C22: 0.1295175957 | D22: 0.9331927987
A23: 271.25 | B23: 1.75 | C23: 0.08627731883 | D23: 0.9599408431
A24: 279 | B24: 2 | C24: 0.05399096651 | D24: 0.9772498681
A25: 286.75 | B25: 2.25 | C25: 0.03173965184 | D25: 0.9877755273
A26: 294.5 | B26: 2.5 | C26: 0.01752830049 | D26: 0.9937903347
G34: -------------------------- Diagramme aus XY-Punkten, geglättet verbunden + Fehlerbalken !! -------------------
H35: Grenzen für f(z) | M35: Grenzen für D(z)
A36: X | B36: Z | C36: f(z) | D36: Fläche f(z) | E36: Fläche D(z) | H36: Untergrenze | I36: -5 | M36: Untergrenze | N36: -1.64
B37: -5 | C37: =NORMDIST(B37,0,1,0) -> 1.486719515e-06 | D37: =AND(B37<=$I$37,B37>$I$36)*C37 -> 0 | E37: =AND(B37<=$N$37,B37>$N$36)*C37 -> 0 | H37: Obergrenze | I37: 1 | M37: Obergrenze | N37: =N36*(-1) -> 1.64
B38: =B37+0.01 -> -4.99 | C38: =NORMDIST(B38,0,1,0) -> 1.562867109e-06 | D38: =AND(B38<=$I$37,B38>$I$36)*C38 -> 1.562867109e-06 | E38: =AND(B38<=$N$37,B38>$N$36)*C38 -> 0
B39: =B38+0.01 -> -4.98 | C39: =NORMDIST(B39,0,1,0) -> 1.642750588e-06 | D39: 1.642750588e-06 | E39: 0
B40: -4.97 | C40: 1.726544522e-06 | D40: 1.726544522e-06 | E40: 0
B41: -4.96 | C41: 1.81443119e-06 | D41: 1.81443119e-06 | E41: 0
B42: -4.95 | C42: 1.906600903e-06 | D42: 1.906600903e-06 | E42: 0
B43: -4.94 | C43: 2.00325233e-06 | D43: 2.00325233e-06 | E43: 0
B44: -4.93 | C44: 2.104592843e-06 | D44: 2.104592843e-06 | E44: 0
B45: -4.92 | C45: 2.210838875e-06 | D45: 2.210838875e-06 | E45: 0
B46: -4.91 | C46: 2.322216285e-06 | D46: 2.322216285e-06 | E46: 0
B47: -4.9 | C47: 2.438960746e-06 | D47: 2.438960746e-06 | E47: 0
B48: -4.89 | C48: 2.561318141e-06 | D48: 2.561318141e-06 | E48: 0
B49: -4.88 | C49: 2.689544974e-06 | D49: 2.689544974e-06 | E49: 0
B50: -4.87 | C50: 2.823908801e-06 | D50: 2.823908801e-06 | E50: 0
B51: -4.86 | C51: 2.964688669e-06 | D51: 2.964688669e-06 | E51: 0
B52: -4.85 | C52: 3.112175579e-06 | D52: 3.112175579e-06 | E52: 0
B53: -4.84 | C53: 3.266672964e-06 | D53: 3.266672964e-06 | E53: 0
B54: -4.83 | C54: 3.428497178e-06 | D54: 3.428497178e-06 | E54: 0
B55: -4.82 | C55: 3.597978014e-06 | D55: 3.597978014e-06 | E55: 0
B56: -4.81 | C56: 3.775459227e-06 | D56: 3.775459227e-06 | E56: 0
B57: -4.8 | C57: 3.961299091e-06 | D57: 3.961299091e-06 | E57: 0
B58: -4.79 | C58: 4.155870965e-06 | D58: 4.155870965e-06 | E58: 0
B59: -4.78 | C59: 4.35956388e-06 | D59: 4.35956388e-06 | E59: 0 | G59: einfaches Säulendiagramm - nicht dynamisch
B60: -4.77 | C60: 4.572783154e-06 | D60: 4.572783154e-06 | E60: 0
B61: -4.76 | C61: 4.795951022e-06 | D61: 4.795951022e-06 | E61: 0
B62: -4.75 | C62: 5.029507289e-06 | D62: 5.029507289e-06 | E62: 0
B63: -4.74 | C63: 5.27391001e-06 | D63: 5.27391001e-06 | E63: 0
B64: -4.73 | C64: 5.529636189e-06 | D64: 5.529636189e-06 | E64: 0
B65: -4.72 | C65: 5.797182506e-06 | D65: 5.797182506e-06 | E65: 0
B66: -4.71 | C66: 6.077066067e-06 | D66: 6.077066067e-06 | E66: 0
B67: -4.7 | C67: 6.369825179e-06 | D67: 6.369825179e-06 | E67: 0
B68: -4.69 | C68: 6.676020155e-06 | D68: 6.676020155e-06 | E68: 0
B69: -4.68 | C69: 6.996234143e-06 | D69: 6.996234143e-06 | E69: 0
B70: -4.67 | C70: 7.331073989e-06 | D70: 7.331073989e-06 | E70: 0
B71: -4.66 | C71: 7.681171117e-06 | D71: 7.681171117e-06 | E71: 0
B72: -4.65 | C72: 8.047182456e-06 | D72: 8.047182456e-06 | E72: 0
B73: -4.64 | C73: 8.429791383e-06 | D73: 8.429791383e-06 | E73: 0
B74: -4.63 | C74: 8.829708704e-06 | D74: 8.829708704e-06 | E74: 0
B75: -4.62 | C75: 9.24767367e-06 | D75: 9.24767367e-06 | E75: 0
B76: -4.61 | C76: 9.68445502e-06 | D76: 9.68445502e-06 | E76: 0
B77: -4.6 | C77: 1.014085207e-05 | D77: 1.014085207e-05 | E77: 0
B78: -4.59 | C78: 1.061769581e-05 | D78: 1.061769581e-05 | E78: 0
B79: -4.58 | C79: 1.111585008e-05 | D79: 1.111585008e-05 | E79: 0
B80: -4.57 | C80: 1.163621276e-05 | D80: 1.163621276e-05 | E80: 0
B81: -4.56 | C81: 1.217971697e-05 | D81: 1.217971697e-05 | E81: 0
B82: -4.55 | C82: 1.274733238e-05 | D82: 1.274733238e-05 | E82: 0
B83: -4.54 | C83: 1.334006649e-05 | D83: 1.334006649e-05 | E83: 0
B84: -4.53 | C84: 1.395896599e-05 | D84: 1.395896599e-05 | E84: 0
B85: -4.52 | C85: 1.460511814e-05 | D85: 1.460511814e-05 | E85: 0
B86: -4.51 | C86: 1.527965225e-05 | D86: 1.527965225e-05 | E86: 0
B87: -4.5 | C87: 1.598374111e-05 | D87: 1.598374111e-05 | E87: 0
B88: -4.49 | C88: 1.671860255e-05 | D88: 1.671860255e-05 | E88: 0
B89: -4.48 | C89: 1.748550103e-05 | D89: 1.748550103e-05 | E89: 0
B90: -4.47 | C90: 1.828574921e-05 | D90: 1.828574921e-05 | E90: 0
B91: -4.46 | C91: 1.912070969e-05 | D91: 1.912070969e-05 | E91: 0
B92: -4.45 | C92: 1.999179671e-05 | D92: 1.999179671e-05 | E92: 0
B93: -4.44 | C93: 2.09004779e-05 | D93: 2.09004779e-05 | E93: 0
B94: -4.43 | C94: 2.184827617e-05 | D94: 2.184827617e-05 | E94: 0
B95: -4.42 | C95: 2.283677157e-05 | D95: 2.283677157e-05 | E95: 0
B96: -4.41 | C96: 2.38676032e-05 | D96: 2.38676032e-05 | E96: 0
B97: -4.4 | C97: 2.494247129e-05 | D97: 2.494247129e-05 | E97: 0
B98: -4.39 | C98: 2.60631392e-05 | D98: 2.60631392e-05 | E98: 0
B99: -4.38 | C99: 2.723143555e-05 | D99: 2.723143555e-05 | E99: 0
B100: -4.37 | C100: 2.844925645e-05 | D100: 2.844925645e-05 | E100: 0
B101: -4.36 | C101: 2.971856768e-05 | D101: 2.971856768e-05 | E101: 0
B102: -4.35 | C102: 3.104140706e-05 | D102: =AND(B102<=$I$37,B102>$I$36)*C102 -> 3.104140706e-05 | E102: =AND(B102<=$N$37,B102>$N$36)*C102 -> 0
B103: =B102+0.01 -> -4.34 | C103: =NORMDIST(B103,0,1,0) -> 3.24198868e-05 | D103: 3.24198868e-05 | E103: 0
B104: -4.33 | C104: 3.385619598e-05 | D104: 3.385619598e-05 | E104: 0
B105: -4.32 | C105: 3.5352603e-05 | D105: 3.5352603e-05 | E105: 0
B106: -4.31 | C106: 3.691145826e-05 | D106: 3.691145826e-05 | E106: 0
B107: -4.3 | C107: 3.853519674e-05 | D107: 3.853519674e-05 | E107: 0
B108: -4.29 | C108: 4.02263408e-05 | D108: 4.02263408e-05 | E108: 0
B109: -4.28 | C109: 4.198750293e-05 | D109: 4.198750293e-05 | E109: 0
B110: -4.27 | C110: 4.38213887e-05 | D110: 4.38213887e-05 | E110: 0
B111: -4.26 | C111: 4.573079969e-05 | D111: 4.573079969e-05 | E111: 0
B112: -4.25 | C112: 4.771863654e-05 | D112: 4.771863654e-05 | E112: 0
B113: -4.24 | C113: 4.97879021e-05 | D113: 4.97879021e-05 | E113: 0
B114: -4.23 | C114: 5.194170462e-05 | D114: 5.194170462e-05 | E114: 0
B115: -4.22 | C115: 5.418326109e-05 | D115: 5.418326109e-05 | E115: 0
B116: -4.21 | C116: 5.651590058e-05 | D116: 5.651590058e-05 | E116: 0
B117: -4.2 | C117: 5.894306776e-05 | D117: 5.894306776e-05 | E117: 0
B118: -4.19 | C118: 6.146832643e-05 | D118: 6.146832643e-05 | E118: 0
B119: -4.18 | C119: 6.409536323e-05 | D119: 6.409536323e-05 | E119: 0
B120: -4.17 | C120: 6.682799134e-05 | D120: 6.682799134e-05 | E120: 0
B121: -4.16 | C121: 6.967015437e-05 | D121: 6.967015437e-05 | E121: 0
B122: -4.15 | C122: 7.26259303e-05 | D122: 7.26259303e-05 | E122: 0
B123: -4.14 | C123: 7.569953553e-05 | D123: 7.569953553e-05 | E123: 0
B124: -4.13 | C124: 7.889532901e-05 | D124: 7.889532901e-05 | E124: 0
B125: -4.12 | C125: 8.221781654e-05 | D125: 8.221781654e-05 | E125: 0
B126: -4.11 | C126: 8.567165506e-05 | D126: 8.567165506e-05 | E126: 0
B127: -4.1 | C127: 8.926165718e-05 | D127: 8.926165718e-05 | E127: 0
B128: -4.09 | C128: 9.299279572e-05 | D128: 9.299279572e-05 | E128: 0
B129: -4.08 | C129: 9.68702084e-05 | D129: 9.68702084e-05 | E129: 0
B130: -4.07 | C130: 0.0001008992026 | D130: 0.0001008992026 | E130: 0
B131: -4.06 | C131: 0.0001050852604 | D131: 0.0001050852604 | E131: 0
B132: -4.05 | C132: 0.0001094340434 | D132: 0.0001094340434 | E132: 0
B133: -4.04 | C133: 0.0001139513981 | D133: 0.0001139513981 | E133: 0
B134: -4.03 | C134: 0.0001186433608 | D134: 0.0001186433608 | E134: 0
B135: -4.02 | C135: 0.0001235161633 | D135: 0.0001235161633 | E135: 0
B136: -4.01 | C136: 0.0001285762386 | D136: 0.0001285762386 | E136: 0
B137: -4 | C137: 0.0001338302258 | D137: 0.0001338302258 | E137: 0
B138: -3.99 | C138: 0.0001392849765 | D138: 0.0001392849765 | E138: 0
B139: -3.98 | C139: 0.0001449475604 | D139: 0.0001449475604 | E139: 0
B140: -3.97 | C140: 0.0001508252716 | D140: 0.0001508252716 | E140: 0
B141: -3.96 | C141: 0.0001569256341 | D141: 0.0001569256341 | E141: 0
B142: -3.95 | C142: 0.0001632564088 | D142: 0.0001632564088 | E142: 0
B143: -3.94 | C143: 0.0001698255994 | D143: 0.0001698255994 | E143: 0
B144: -3.93 | C144: 0.0001766414593 | D144: 0.0001766414593 | E144: 0
B145: -3.92 | C145: 0.000183712498 | D145: 0.000183712498 | E145: 0
B146: -3.91 | C146: 0.0001910474879 | D146: 0.0001910474879 | E146: 0
B147: -3.9 | C147: 0.0001986554714 | D147: 0.0001986554714 | E147: 0
B148: -3.89 | C148: 0.000206545768 | D148: 0.000206545768 | E148: 0
B149: -3.88 | C149: 0.0002147279815 | D149: 0.0002147279815 | E149: 0
B150: -3.87 | C150: 0.0002232120072 | D150: 0.0002232120072 | E150: 0
B151: -3.86 | C151: 0.0002320080397 | D151: 0.0002320080397 | E151: 0
B152: -3.85 | C152: 0.0002411265802 | D152: 0.0002411265802 | E152: 0
B153: -3.84 | C153: 0.0002505784449 | D153: 0.0002505784449 | E153: 0
B154: -3.83 | C154: 0.0002603747722 | D154: 0.0002603747722 | E154: 0
B155: -3.82 | C155: 0.0002705270315 | D155: 0.0002705270315 | E155: 0
B156: -3.81 | C156: 0.0002810470308 | D156: 0.0002810470308 | E156: 0
B157: -3.8 | C157: 0.0002919469258 | D157: 0.0002919469258 | E157: 0
B158: -3.79 | C158: 0.0003032392278 | D158: 0.0003032392278 | E158: 0
B159: -3.78 | C159: 0.0003149368129 | D159: 0.0003149368129 | E159: 0
B160: -3.77 | C160: 0.0003270529305 | D160: 0.0003270529305 | E160: 0
B161: -3.76 | C161: 0.0003396012125 | D161: 0.0003396012125 | E161: 0
B162: -3.75 | C162: 0.0003525956824 | D162: 0.0003525956824 | E162: 0
B163: -3.74 | C163: 0.0003660507646 | D163: 0.0003660507646 | E163: 0
B164: -3.73 | C164: 0.0003799812938 | D164: 0.0003799812938 | E164: 0
B165: -3.72 | C165: 0.000394402525 | D165: 0.000394402525 | E165: 0
B166: -3.71 | C166: 0.0004093301425 | D166: =AND(B166<=$I$37,B166>$I$36)*C166 -> 0.0004093301425 | E166: =AND(B166<=$N$37,B166>$N$36)*C166 -> 0
B167: =B166+0.01 -> -3.7 | C167: =NORMDIST(B167,0,1,0) -> 0.0004247802706 | D167: 0.0004247802706 | E167: 0
B168: -3.69 | C168: 0.0004407694831 | D168: 0.0004407694831 | E168: 0
B169: -3.68 | C169: 0.0004573148141 | D169: 0.0004573148141 | E169: 0
B170: -3.67 | C170: 0.0004744337676 | D170: 0.0004744337676 | E170: 0
B171: -3.66 | C171: 0.0004921443288 | D171: 0.0004921443288 | E171: 0
B172: -3.65 | C172: 0.0005104649743 | D172: 0.0005104649743 | E172: 0
B173: -3.64 | C173: 0.0005294146831 | D173: 0.0005294146831 | E173: 0
B174: -3.63 | C174: 0.0005490129474 | D174: 0.0005490129474 | E174: 0
B175: -3.62 | C175: 0.0005692797838 | D175: 0.0005692797838 | E175: 0
B176: -3.61 | C176: 0.0005902357449 | D176: 0.0005902357449 | E176: 0
B177: -3.6 | C177: 0.0006119019301 | D177: 0.0006119019301 | E177: 0
B178: -3.59 | C178: 0.0006342999975 | D178: 0.0006342999975 | E178: 0
B179: -3.58 | C179: 0.0006574521757 | D179: 0.0006574521757 | E179: 0
B180: -3.57 | C180: 0.0006813812751 | D180: 0.0006813812751 | E180: 0
B181: -3.56 | C181: 0.0007061107005 | D181: 0.0007061107005 | E181: 0
B182: -3.55 | C182: 0.0007316644628 | D182: 0.0007316644628 | E182: 0
B183: -3.54 | C183: 0.0007580671914 | D183: 0.0007580671914 | E183: 0
B184: -3.53 | C184: 0.0007853441464 | D184: 0.0007853441464 | E184: 0
B185: -3.52 | C185: 0.0008135212311 | D185: 0.0008135212311 | E185: 0
B186: -3.51 | C186: 0.0008426250047 | D186: 0.0008426250047 | E186: 0
B187: -3.5 | C187: 0.000872682695 | D187: 0.000872682695 | E187: 0
B188: -3.49 | C188: 0.0009037222113 | D188: 0.0009037222113 | E188: 0
B189: -3.48 | C189: 0.0009357721569 | D189: 0.0009357721569 | E189: 0
B190: -3.47 | C190: 0.0009688618429 | D190: 0.0009688618429 | E190: 0
B191: -3.46 | C191: 0.001003021301 | D191: 0.001003021301 | E191: 0
B192: -3.45 | C192: 0.001038281296 | D192: 0.001038281296 | E192: 0
B193: -3.44 | C193: 0.00107467334 | D193: 0.00107467334 | E193: 0
B194: -3.43 | C194: 0.001112229707 | D194: 0.001112229707 | E194: 0
B195: -3.42 | C195: 0.001150983444 | D195: 0.001150983444 | E195: 0
B196: -3.41 | C196: 0.001190968386 | D196: 0.001190968386 | E196: 0
B197: -3.4 | C197: 0.001232219168 | D197: 0.001232219168 | E197: 0
B198: -3.39 | C198: 0.001274771244 | D198: 0.001274771244 | E198: 0
B199: -3.38 | C199: 0.001318660892 | D199: 0.001318660892 | E199: 0
B200: -3.37 | C200: 0.001363925236 | D200: 0.001363925236 | E200: 0
B201: -3.36 | C201: 0.001410602257 | D201: 0.001410602257 | E201: 0
B202: -3.35 | C202: 0.001458730805 | D202: 0.001458730805 | E202: 0
B203: -3.34 | C203: 0.001508350615 | D203: 0.001508350615 | E203: 0
B204: -3.33 | C204: 0.001559502322 | D204: 0.001559502322 | E204: 0
B205: -3.32 | C205: 0.001612227472 | D205: 0.001612227472 | E205: 0
B206: -3.31 | C206: 0.00166656854 | D206: 0.00166656854 | E206: 0
B207: -3.3 | C207: 0.001722568939 | D207: 0.001722568939 | E207: 0
B208: -3.29 | C208: 0.00178027304 | D208: 0.00178027304 | E208: 0
... 829 more rows

Sheet T3 - Abb.Diskrete u. stetige NV
A1: T3 - Abb.Diskrete u. stetige NV
A2: Mittelwert: | C2: 130
A3: Standardabw.: | C3: 48
A5: X | B5: Z | C5: f(z) | D5: F(z) | F5: X Gruppe | G5: f(z) Gruppe
A6: =$C$2+B6*$C$3 -> 10 | B6: =B7-0.25 -> -2.5 | C6: =NORMDIST(B6,0,1,0) -> 0.01752830049 | D6: =NORMSDIST(B6) -> 0.006209665326 | E6: 1 | F6: =AVERAGE(A6:A8) -> 22 | G6: =AVERAGE($C$6:$C$8) -> 0.03441963961
A7: 22 | B7: -2.25 | C7: 0.03173965184 | D7: 0.01222447266 | E7: 2 | F7: =AVERAGE(A9:A11) -> 58 | G7: =AVERAGE($C$9:$C$11) -> 0.1328146666
A8: 34 | B8: -2 | C8: 0.05399096651 | D8: 0.02275013195 | E8: 3 | F8: =AVERAGE(A12:A14) -> 94 | G8: =AVERAGE($C$12:$C$14) -> 0.2983911611
A9: 46 | B9: -1.75 | C9: 0.08627731883 | D9: 0.04005915686 | E9: 1 | F9: =AVERAGE(A15:A17) -> 130 | G9: =AVERAGE($C$15:$C$17) -> 0.3907595047
A10: 58 | B10: -1.5 | C10: 0.1295175957 | D10: 0.06680720127 | E10: 2 | F10: =AVERAGE(A18:A20) -> 166 | G10: =AVERAGE($C$18:$C$20) -> 0.2983911611
A11: 70 | B11: -1.25 | C11: 0.1826490854 | D11: 0.1056497737 | E11: 3 | F11: =AVERAGE(A21:A23) -> 202 | G11: =AVERAGE($C$21:$C$23) -> 0.1328146666
A12: 82 | B12: -1 | C12: 0.2419707245 | D12: 0.1586552539 | E12: 1 | F12: =AVERAGE(A24:A26) -> 238 | G12: =AVERAGE($C$24:$C$26) -> 0.03441963961
A13: 94 | B13: -0.75 | C13: 0.3011374322 | D13: 0.2266273524 | E13: 2
A14: 106 | B14: -0.5 | C14: 0.3520653268 | D14: 0.3085375387 | E14: 3
A15: 118 | B15: =B16-0.25 -> -0.25 | C15: 0.3866681168 | D15: 0.4012936743 | E15: 1
A16: =C2 -> 130 | B16: =(A16-$C$2)/$C$3 -> 0 | C16: 0.3989422804 | D16: 0.5 | E16: 2
A17: =$C$2+B17*$C$3 -> 142 | B17: =B16+0.25 -> 0.25 | C17: 0.3866681168 | D17: 0.5987063257 | E17: 3
A18: 154 | B18: =B17+0.25 -> 0.5 | C18: 0.3520653268 | D18: 0.6914624613 | E18: 1
A19: 166 | B19: 0.75 | C19: 0.3011374322 | D19: =NORMSDIST(B19) -> 0.7733726476 | E19: 2
A20: 178 | B20: 1 | C20: 0.2419707245 | D20: 0.8413447461 | E20: 3
A21: 190 | B21: 1.25 | C21: 0.1826490854 | D21: 0.8943502263 | E21: 1
A22: 202 | B22: 1.5 | C22: 0.1295175957 | D22: 0.9331927987 | E22: 2
A23: 214 | B23: 1.75 | C23: 0.08627731883 | D23: 0.9599408431 | E23: 3
A24: 226 | B24: 2 | C24: 0.05399096651 | D24: 0.9772498681 | E24: 1
A25: 238 | B25: 2.25 | C25: 0.03173965184 | D25: 0.9877755273 | E25: 2
A26: 250 | B26: 2.5 | C26: 0.01752830049 | D26: 0.9937903347 | E26: 3

Sheet T4 F(Chi^2)
A1: Tabelle 4: c2-Verteilung | J1: Verteilungsfunktion
B2: F (c2)
A4: n | B4: 0.6 | C4: 0.75 | D4: 0.9 | E4: 0.95 | F4: 0.975 | G4: 0.98 | H4: 0.99 | I4: 0.995 | J4: 0.999
A5: 1 | B5: =CHIINV(1-B$4,$A5) -> 0.7083263008 | C5: =CHIINV(1-C$4,$A5) -> 1.323303697 | D5: 2.705543454 | E5: 3.841458821 | F5: 5.023886187 | G5: 5.411894431 | H5: 6.634896601 | I5: 7.879438577 | J5: 10.82756617
A6: 2 | B6: =CHIINV(1-B$4,$A6) -> 1.832581464 | C6: =CHIINV(1-C$4,$A6) -> 2.772588722 | D6: 4.605170186 | E6: 5.991464547 | F6: 7.377758908 | G6: 7.824046011 | H6: 9.210340372 | I6: 10.59663473 | J6: 13.81551056
A7: 3 | B7: 2.946166073 | C7: 4.108344936 | D7: 6.251388631 | E7: 7.814727903 | F7: 9.348403604 | G7: 9.837409311 | H7: 11.34486673 | I7: 12.83815647 | J7: 16.2662362
A8: 4 | B8: 4.044626491 | C8: 5.385269058 | D8: 7.77944034 | E8: 9.487729037 | F8: 11.14328678 | G8: 11.6678434 | H8: 13.27670414 | I8: 14.860259 | J8: 18.46682695
A9: 5 | B9: 5.131867074 | C9: 6.625679764 | D9: 9.2363569 | E9: 11.07049769 | F9: 12.83250199 | G9: 13.3882226 | H9: 15.08627247 | I9: 16.74960234 | J9: 20.51500565
A10: 6 | B10: 6.210757195 | C10: 7.840804121 | D10: 10.64464068 | E10: 12.59158724 | F10: 14.44937534 | G10: 15.03320775 | H10: 16.81189383 | I10: 18.54758418 | J10: 22.45774448
A11: 7 | B11: 7.283207633 | C11: 9.037147548 | D11: 12.01703662 | E11: 14.06714045 | F11: 16.01276427 | G11: 16.62242187 | H11: 18.47530691 | I11: 20.27773987 | J11: 24.32188635
A12: 8 | B12: 8.350525468 | C12: 10.21885497 | D12: 13.36156614 | E12: 15.50731306 | F12: 17.53454614 | G12: 18.16823076 | H12: 20.09023503 | I12: 21.95495499 | J12: 26.12448156
A13: 9 | B13: 9.413640094 | C13: 11.38875144 | D13: 14.68365657 | E13: 16.9189776 | F13: 19.0227678 | G13: 19.67901609 | H13: 21.66599433 | I13: 23.58935078 | J13: 27.87716487
A14: 10 | B14: 10.47323623 | C14: 12.5488614 | D14: 15.98717917 | E14: 18.30703805 | F14: 20.48317735 | G14: 21.16076754 | H14: 23.20925116 | I14: 25.18817957 | J14: 29.58829845
A15: 11 | B15: 11.52983384 | C15: 13.70069275 | D15: 17.27500852 | E15: 19.67513757 | F15: 21.92004926 | G15: 22.61794081 | H15: 24.72497031 | I15: 26.75684892 | J15: 31.26413362
A16: 12 | B16: 12.58383797 | C16: =CHIINV(1-C$4,$A16) -> 14.84540367 | D16: 18.54934779 | E16: 21.02606982 | F16: 23.33666416 | G16: 24.05395669 | H16: 26.21696731 | I16: 28.29951882 | J16: 32.90949041
A17: 13 | B17: 13.63557099 | C17: 15.98390622 | D17: 19.81192931 | E17: 22.36203249 | F17: 24.73560488 | G17: 25.47150914 | H17: 27.68824961 | I17: 29.81947122 | J17: 34.52817897
A18: 14 | B18: 14.68529426 | C18: 17.1169336 | D18: 21.06414421 | E18: 23.6847913 | F18: 26.11894805 | G18: 26.87276464 | H18: 29.14123774 | I18: 31.31934962 | J18: 36.12327368
A19: 15 | B19: 15.73322295 | C19: 18.2450856 | D19: 22.30712958 | E19: 24.99579014 | F19: 27.48839286 | G19: 28.25949634 | H19: 30.57791417 | I19: 32.80132065 | J19: 37.69729822
A20: 16 | B20: 16.77953671 | C20: 19.36886022 | D20: 23.54182892 | E20: 26.2962276 | F20: 28.84535072 | G20: 29.63317731 | H20: 31.99992691 | I20: 34.26718654 | J20: 39.25235479
A21: 17 | B21: 17.82438726 | C21: 20.48867624 | D21: 24.76903534 | E21: 27.58711164 | F21: 30.19100912 | G21: 30.99504721 | H21: 33.40866361 | I21: 35.71846566 | J21: 40.79021671
A22: 18 | B22: 18.86790412 | C22: 21.6048898 | D22: 25.98942308 | E22: 28.86929943 | F22: 31.52637844 | G22: 32.34616093 | H22: 34.80530573 | I22: 37.15645146 | J22: 42.31239633
A23: 19 | B23: 19.91019886 | C23: 22.71780674 | D23: 27.20357103 | E23: 30.14352721 | F23: 32.85232686 | G23: 33.68742507 | H23: 36.19086913 | I23: 38.58225655 | J23: 43.82019596
A24: 20 | B24: 20.95136838 | C24: 23.82769204 | D24: 28.41198058 | E24: 31.41043284 | F24: 34.1696069 | G24: 35.01962554 | H24: 37.56623479 | I24: 39.99684631 | J24: 45.31474662
A25: 21 | B25: 21.99149749 | C25: 24.93477701 | D25: 29.61508944 | E25: 32.67057334 | F25: 35.47887591 | G25: 36.34344894 | H25: 38.93217268 | I25: 41.40106477 | J25: 46.79703804
A26: 22 | B26: 23.0306609 | C26: =CHIINV(1-C$4,$A26) -> 26.03926503 | D26: 30.81328234 | E26: 33.92443847 | F26: 36.78071208 | G26: 37.65949928 | H26: 40.28936044 | I26: 42.795655 | J26: 48.26794229
A27: 23 | B27: 24.06892481 | C27: 27.141336 | D27: 32.00689968 | E27: 35.17246163 | F27: 38.07562725 | G27: 38.96831129 | H27: 41.63839812 | I27: 44.18127525 | J27: 49.72823247
A28: 24 | B28: 25.10634822 | C28: 28.24115003 | D28: 33.19624429 | E28: 36.4150285 | F28: 39.36407703 | G28: 40.27036101 | H28: 42.97982014 | I28: 45.55851194 | J28: 51.17859778
A29: 25 | B29: 26.14298397 | C29: 29.33885028 | D29: 34.38158702 | E29: 37.65248413 | F29: 40.64646912 | G29: 41.56607449 | H29: 44.3141049 | I29: 46.92789016 | J29: 52.61965578
A30: 26 | B30: 27.1788796 | C30: 30.43456543 | D30: 35.56317127 | E30: 38.88513866 | F30: 41.9231701 | G30: 42.85583479 | H30: 45.64168267 | I30: 48.28988233 | J30: 54.05196239
A31: 27 | B31: 28.21407808 | C31: 31.52841162 | D31: 36.74121675 | E31: 40.11327207 | F31: 43.19451097 | G31: 44.13998786 | H31: 46.96294212 | I31: 49.6449153 | J31: 55.47602021
A32: 28 | B32: 29.24861837 | C32: 32.6204941 | D32: 37.91592254 | E32: 41.33713815 | F32: 44.46079184 | G32: 45.41884738 | H32: 48.27823577 | I32: 50.99337627 | J32: 56.89228539
A33: 29 | B33: 30.28253595 | C33: 33.7109086 | D33: 39.08746977 | E33: 42.5569678 | F33: 45.7222858 | G33: 46.6926988 | H33: 49.58788447 | I33: 52.33561779 | J33: 58.30117349
A34: 30 | B34: 31.31586324 | C34: 34.79974252 | D34: 40.25602374 | E34: 43.77297183 | F34: 46.97924224 | G34: 47.96180282 | H34: 50.89218131 | I34: 53.67196193 | J34: 59.7030643
A35: 40 | B35: 41.62219289 | C35: 45.61601362 | D35: 51.80505721 | E35: 55.75847928 | F35: 59.34170714 | G35: 60.43613356 | H35: 63.69073975 | I35: 66.76596183 | J35: 73.40195752
A36: 50 | B36: 51.89158387 | C36: 56.33360492 | D36: 63.16712101 | E36: 67.50480655 | F36: 71.42019519 | G36: 72.61325238 | H36: 76.15389125 | I36: 79.48997847 | J36: 86.66081519
A37: 100 | B37: 102.9459442 | C37: 109.1412411 | D37: 118.4980038 | E37: 124.3421134 | F37: 129.5611972 | G37: 131.1416769 | H37: 135.8067232 | I37: 140.1694894 | J37: 149.4492528

Sheet T4 Abbildung zu Chi^2 f
A1: Tabelle 4: c2-Verteilung | H1: DICHTEfunktion
C2: f (c2)
B4: Freiheitsgrade n:
B5: 3 | C5: 5 | D5: 9 | E5: 20 | F5: 30 | G5: 50
B6: ="n="&B5 -> n=3 | C6: ="n="&C5 -> n=5 | D6: n=9 | E6: n=20 | F6: n=30 | G6: n=50
A7: 0 | B7: =CHIDIST($A7,B$5)-(CHIDIST($A7+0.01,B$5)) -> 0.0002651650587 | C7: 5.300270043e-07 | D7: =CHIDIST($A7,D$5)-(CHIDIST($A7+0.01,D$5)) -> 8.408829189e-13 | E7: 0 | F7: 0 | G7: 0
A8: 1 | B8: =CHIDIST($A8,B$5)-(CHIDIST($A8+0.01,B$5)) -> 0.002419687181 | C8: 0.000810595189 | D8: 2.33926182e-05 | E8: =CHIDIST($A8,E$5)-(CHIDIST($A8+0.01,E$5)) -> 1.70338188e-11 | F8: 0 | G8: 0
A9: 2 | B9: 0.002072940921 | C9: 0.001385414072 | D9: 0.0001591263497 | E9: 5.171433171e-09 | F9: 2.176037128e-14 | G9: 0
A10: 3 | B10: 0.001539235057 | C10: 0.001541799022 | D10: 0.0003977856143 | E10: 1.196793714e-07 | F10: 3.814726313e-12 | G10: 0
A11: 4 | B11: 0.001077796637 | C11: 0.001438857388 | D11: 0.0006594088117 | E11: 9.631401843e-07 | F11: 1.290971774e-10 | G11: 0
A12: 5 | B12: 0.0007307863374 | C12: 0.001219194394 | D12: 0.000872595424 | E12: 4.342643771e-06 | F12: 1.774130065e-09 | G12: 0
A13: 6 | B13: 0.0004855094405 | C13: 0.0009718275013 | D13: 0.001001260222 | E13: 1.357020123e-05 | F13: 1.378351744e-08 | G13: 0
A14: 7 | B14: 0.0003180519238 | C14: 0.0007426508633 | D14: 0.001041196509 | E14: 3.292263801e-05 | F14: 7.223418752e-08 | G14: 2.775557562e-15
A15: 8 | B15: 0.000206218395 | C15: 0.0005502591667 | D15: 0.001007445794 | E15: 6.636297152e-05 | F15: 2.837521651e-07 | G15: 4.207745263e-14
A16: 9 | B16: 0.0001326604194 | C16: 0.0003982021951 | D16: 0.0009225774099 | E16: 0.0001161127232 | F16: 8.943438994e-07 | G16: 4.303224443e-13
A17: 10 | B17: 8.481268729e-05 | C17: 0.0002828502061 | D17: 0.000808951387 | E17: 0.0001816907542 | F17: 2.369321958e-06 | G17: 3.267386361e-12
A18: 11 | B18: 5.395107083e-05 | C18: 0.0001979104434 | D18: 0.0006848264911 | E18: 0.0002597419485 | F18: 5.453782982e-06 | G18: 1.949862494e-11
A19: 12 | B19: 3.417739001e-05 | C19: 0.0001367664788 | D19: 0.0005631651207 | E19: =CHIDIST($A19,E$5)-(CHIDIST($A19+0.01,E$5)) -> 0.0003446226854 | F19: =CHIDIST($A19,F$5)-(CHIDIST($A19+0.01,F$5)) -> 1.11778947e-05 | G19: 9.536471612e-11
A20: 13 | B20: 2.157574277e-05 | C20: 9.353081723e-05 | D20: 0.0004519674982 | E20: 0.0004294675168 | F20: 2.078199746e-05 | G20: 3.946354354e-10
A21: 14 | B21: 1.358016036e-05 | C21: 6.339669777e-05 | D21: 0.0003552749886 | E21: 0.0005073852913 | F21: 3.555973454e-05 | G21: 1.416428086e-09
A22: 15 | B22: 8.525779675e-06 | C22: 4.264309695e-05 | D22: 0.0002743168696 | E22: 0.0005724882844 | F22: 5.664369634e-05 | G22: 4.496929495e-09
A23: 16 | B23: 5.340681854e-06 | C23: 2.849253074e-05 | D23: 0.000208532701 | E23: 0.0006205781335 | F23: 8.477733797e-05 | G23: 1.283041684e-08
A24: 17 | B24: 3.338950258e-06 | C24: 1.892627868e-05 | D24: 0.0001563688694 | E24: 0.0006494382291 | F24: 0.0001201229225 | G24: 3.332700071e-08
A25: 18 | B25: 2.083871601e-06 | C25: 1.250669999e-05 | D25: 0.0001158405959 | E25: 0.0006587778951 | F25: 0.0001621472027 | G25: 7.966077065e-08
A26: 19 | B26: 1.298557222e-06 | C26: 8.226358295e-06 | D26: 8.48936437e-05 | E26: 0.000649926908 | F26: 0.0002096083914 | G26: 1.768035706e-07
A27: 20 | B27: 8.080703922e-07 | C27: 5.388481666e-06 | D27: 6.161342225e-05 | E27: 0.0006253935827 | F27: 0.0002606459293 | G27: 3.671470116e-07
A28: 21 | B28: =CHIDIST($A28,B$5)-(CHIDIST($A28+0.01,B$5)) -> 5.022200198e-07 | C28: 3.516376508e-06 | D28: 4.432743053e-05 | E28: 0.000588387394 | F28: 0.0003129547242 | G28: 7.179790164e-07
A29: 22 | B29: 3.117784729e-07 | C29: 2.286894685e-06 | D29: 3.16388531e-05 | E29: 0.0005423808043 | F29: 0.0003640121482 | G29: 1.329636389e-06
A30: 23 | B30: 1.933522894e-07 | C30: 1.482689549e-06 | D30: 2.241953121e-05 | E30: 0.0004907551451 | F30: 0.0004113208596 | G30: 2.343183576e-06
A31: 24 | B31: 1.197958617e-07 | C31: 9.58566394e-07 | D31: 1.578183323e-05 | E31: 0.0004365488859 | F31: 0.0004526328885 | G31: 3.946084158e-06
A32: 25 | B32: 7.415785352e-08 | C32: 6.181056102e-07 | D32: 1.104201257e-05 | E32: 0.0003823067711 | F32: 0.0004861283437 | G32: 6.374154774e-06
A33: 26 | B33: 4.586959556e-08 | C33: 3.976128829e-07 | D33: 7.68256072e-06 | E33: 0.000330015814 | F33: 0.0005105328488 | G33: 9.908212023e-06
A34: 27 | B34: 2.835119264e-08 | C34: 2.552079479e-07 | D34: 5.317584503e-06 | E34: 0.0002811081462 | F34: 0.0005251688757 | G34: 1.486427629e-05
A35: 28 | B35: 1.751135656e-08 | C35: 1.6346849e-07 | D35: 3.663001106e-06 | E35: =CHIDIST($A35,E$5)-(CHIDIST($A35+0.01,E$5)) -> 0.0002365095913 | F35: 0.000529945582 | G35: 2.15769462e-05
A36: 29 | B36: 1.080914139e-08 | C36: 1.045063675e-07 | D36: 2.512004078e-06 | E36: 0.0001967148566 | F36: 0.0005252984712 | G36: 3.037649996e-05
A37: 30 | B37: 6.668134303e-09 | C37: 6.669244763e-08 | D37: 1.715519938e-06 | E37: 0.0001618738813 | F37: 0.0005120938469 | G37: 4.156126277e-05
A38: 31 | B38: 4.111271434e-09 | C38: 4.248998475e-08 | D38: 1.167029678e-06 | E38: 0.0001318780414 | F38: 0.000491513878 | G38: 5.536763582e-05
A39: 32 | B39: 2.533506125e-09 | C39: 2.702828444e-08 | D39: 7.910173338e-07 | E39: 0.0001064388364 | F39: 0.0004649367657 | G39: 7.194075958e-05
A40: 33 | B40: 1.560470889e-09 | C40: 1.716777847e-08 | D40: 5.343249256e-07 | E40: 8.515497685e-05 | F40: 0.0004338237576 | G40: 9.13089806e-05
A41: 34 | B41: 9.607047815e-10 | C41: 1.08895874e-08 | D41: 3.597732299e-07 | E41: 6.756630677e-05 | F41: 0.0003996213524 | G41: 0.000113365067
A42: 35 | B42: 5.912026383e-10 | C42: 6.898348654e-09 | D42: 2.415111404e-07 | E42: 5.319473777e-05 | F42: 0.000363683576 | G42: 0.0001378565048
A43: 36 | B43: 3.636683364e-10 | C43: 4.36462566e-09 | D43: 1.616607162e-07 | E43: 4.157344729e-05 | F43: 0.0003272161413 | G43: 0.0001643862963
A44: 37 | B44: 2.23618148e-10 | C44: 2.758329553e-09 | D44: 1.0791923e-07 | E44: 3.226614963e-05 | F44: 0.0002912418556 | G44: 0.0001924246034
A45: 38 | B45: 1.37451654e-10 | C45: 1.741283184e-09 | D45: 7.185926158e-08 | E45: 2.487842393e-05 | F45: 0.0002565849331 | G45: 0.0002213304831
A46: 39 | B46: 8.445833247e-11 | C46: 1.098098972e-09 | D46: 4.773247147e-08 | E46: 1.906301273e-05 | F46: 0.0002238708511 | G46: 0.0002503819827
A47: 40 | B47: 5.187907911e-11 | C47: 6.918074496e-10 | D47: 3.163338435e-08 | E47: 1.45207897e-05 | F47: 0.0001935379827 | G47: 0.0002788121201
A48: 41 | B48: 3.185710367e-11 | C48: 4.354334688e-10 | D48: 2.091834472e-08 | E48: 1.099881441e-05 | F48: 0.0001658572863 | G48: 0.0003058478275
A49: 42 | B49: 1.955650011e-11 | C49: 2.738235692e-10 | D49: 1.380399149e-08 | E49: 8.286596538e-06 | F49: 0.0001409567051 | G49: 0.0003307488202
A50: 43 | B50: 1.200197937e-11 | C50: 1.720483579e-10 | D50: 9.091181229e-09 | E50: 6.21141613e-06 | F50: 0.0001188474821 | G50: 0.000352843541
A51: 44 | B51: 7.363718399e-12 | C51: 1.080134661e-10 | D51: 5.976044654e-09 | E51: =CHIDIST($A51,E$5)-(CHIDIST($A51+0.01,E$5)) -> 4.633306709e-06 | F51: 9.945022643e-05 | G51: 0.0003715597734

Sheet T5a F(t)
A1: Tabelle 5 a: t-Verteilung | H1: Verteilungsfunktion
B2: F (t)
A3: (1-a) | B3: 0.7 | C3: 0.8 | D3: 0.9 | E3: 0.95 | F3: 0.975 | G3: 0.99 | H3: 0.995
A4: a | B4: =1-B3 -> 0.3 | C4: 0.2 | D4: 0.1 | E4: 0.05 | F4: 0.025 | G4: 0.01 | H4: 0.005
A5: n a / 2 | B5: =B4/2 -> 0.15 | C5: 0.1 | D5: 0.05 | E5: 0.025 | F5: 0.0125 | G5: 0.005 | H5: 0.0025
A6: 1 | B6: =TINV(2*B$4,$A6) -> 0.726542528 | C6: 1.37638192 | D6: 3.077683537 | E6: 6.313751515 | F6: 12.70620474 | G6: 31.82051595 | H6: 63.65674116
A7: 2 | B7: 0.6172133998 | C7: 1.060660172 | D7: 1.885618083 | E7: 2.91998558 | F7: 4.30265273 | G7: 6.964556734 | H7: 9.924843201
A8: 3 | B8: 0.5843897274 | C8: 0.9784723124 | D8: 1.637744354 | E8: 2.353363435 | F8: 3.182446305 | G8: 4.540702859 | H8: 5.84090931
A9: 4 | B9: 0.568649063 | C9: 0.9409645772 | D9: 1.533206274 | E9: 2.131846786 | F9: 2.776445105 | G9: 3.746947388 | H9: 4.604094871
A10: 5 | B10: 0.5594296445 | C10: 0.9195437802 | D10: 1.475884049 | E10: 2.015048373 | F10: 2.570581836 | G10: 3.364929999 | H10: 4.032142984
A11: 6 | B11: 0.5533809236 | C11: 0.9057032852 | D11: 1.439755747 | E11: 1.943180281 | F11: 2.446911851 | G11: 3.142668403 | H11: 3.707428021
A12: 7 | B12: 0.5491096579 | C12: 0.8960296443 | D12: 1.414923928 | E12: 1.894578605 | F12: 2.364624252 | G12: 2.997951567 | H12: 3.499483297
A13: 8 | B13: 0.5459337635 | C13: 0.8888895178 | D13: 1.39681531 | E13: 1.859548038 | F13: 2.306004135 | G13: 2.896459448 | H13: 3.355387331
A14: 9 | B14: 0.5434802415 | C14: 0.8834038597 | D14: 1.383028738 | E14: 1.833112933 | F14: 2.262157163 | G14: 2.821437925 | H14: 3.249835542
A15: 10 | B15: 0.5415280388 | C15: 0.8790578286 | D15: 1.372183641 | E15: 1.812461123 | F15: 2.228138852 | G15: 2.763769458 | H15: 3.169272673
A16: 11 | B16: =TINV(2*B$4,$A16) -> 0.5399378785 | C16: 0.8755299781 | D16: 1.363430318 | E16: 1.795884819 | F16: 2.20098516 | G16: 2.718079184 | H16: 3.105806516
A17: 12 | B17: 0.5386176682 | C17: 0.8726092916 | D17: 1.356217334 | E17: 1.782287556 | F17: 2.17881283 | G17: 2.680997993 | H17: 3.054539589
A18: 13 | B18: 0.5375040895 | C18: 0.870151534 | D18: 1.350171289 | E18: 1.770933396 | F18: 2.160368656 | G18: 2.650308838 | H18: 3.012275839
A19: 14 | B19: 0.5365521798 | C19: 0.8680547816 | D19: 1.345030374 | E19: 1.761310136 | F19: 2.144786688 | G19: 2.624494068 | H19: 2.976842734
A20: 15 | B20: 0.535729133 | C20: 0.8662449732 | D20: 1.340605608 | E20: 1.753050356 | F20: 2.131449546 | G20: 2.602480295 | H20: 2.946712883
A21: 16 | B21: 0.5350104529 | C21: 0.8646670018 | D21: 1.336757167 | E21: 1.745883676 | F21: 2.119905299 | G21: 2.583487185 | H21: 2.920781622
A22: 17 | B22: 0.5343774798 | C22: 0.8632790174 | D22: 1.33337939 | E22: 1.739606726 | F22: 2.109815578 | G22: 2.566933984 | H22: 2.89823052
A23: 18 | B23: 0.5338157505 | C23: 0.862048668 | D23: 1.330390944 | E23: 1.734063607 | F23: 2.10092204 | G23: 2.55237963 | H23: 2.878440473
A24: 19 | B24: 0.5333138816 | C24: 0.8609505503 | D24: 1.327728209 | E24: 1.729132812 | F24: 2.093024054 | G24: 2.539483191 | H24: 2.860934606
A25: 20 | B25: 0.5328627916 | C25: 0.8599644397 | D25: 1.325340707 | E25: 1.724718243 | F25: 2.085963447 | G25: 2.527977003 | H25: 2.84533971
A26: 21 | B26: =TINV(2*B$4,$A26) -> 0.532455147 | C26: 0.8590740352 | D26: 1.323187874 | E26: 1.720742903 | F26: 2.079613845 | G26: 2.517648016 | H26: 2.831359558
A27: 22 | B27: 0.5320849613 | C27: 0.8582660517 | D27: 1.321236742 | E27: 1.717144374 | F27: 2.073873068 | G27: 2.508324553 | H27: 2.818756061
A28: 23 | B28: 0.5317472993 | C28: 0.8575295537 | D28: 1.31946024 | E28: 1.713871528 | F28: 2.06865761 | G28: 2.499866739 | H28: 2.807335684
A29: 24 | B29: 0.5314380561 | C29: 0.8568554581 | D29: 1.317835934 | E29: 1.71088208 | F29: 2.063898562 | G29: 2.492159473 | H29: 2.796939505
A30: 25 | B30: 0.5311537896 | C30: 0.8562361577 | D30: 1.316345073 | E30: 1.708140761 | F30: 2.059538553 | G30: 2.485107175 | H30: 2.787435814
A31: 26 | B31: 0.5308915918 | C31: 0.8556652333 | D31: 1.314971864 | E31: 1.70561792 | F31: 2.055529439 | G31: 2.478629824 | H31: 2.778714533
A32: 27 | B32: 0.5306489893 | C32: 0.8551372307 | D32: 1.313702913 | E32: 1.703288446 | F32: 2.051830516 | G32: 2.472659912 | H32: 2.770682957
A33: 28 | B33: 0.5304238649 | C33: 0.8546474856 | D33: 1.312526782 | E33: 1.701130934 | F33: 2.048407142 | G33: 2.467140098 | H33: 2.763262455
A34: 29 | B34: 0.5302143957 | C34: 0.8541919859 | D34: 1.311433647 | E34: 1.699127027 | F34: 2.045229642 | G34: 2.46202136 | H34: 2.756385904
A35: 30 | B35: 0.5300190039 | C35: 0.8537672615 | D35: 1.310415025 | E35: 1.697260887 | F35: 2.042272456 | G35: 2.457261542 | H35: 2.749995654
A36: 40 | B36: =TINV(2*B$4,$A36) -> 0.5286056796 | C36: 0.8506997958 | D36: 1.303077053 | E36: 1.683851013 | F36: 2.02107539 | G36: 2.423256779 | H36: 2.704459267
A37: 50 | B37: 0.5277604527 | C37: 0.8488692445 | D37: 1.298713694 | E37: 1.675905025 | F37: 2.008559112 | G37: 2.403271917 | H37: 2.677793271
A38: 60 | B38: 0.5271981272 | C38: 0.8476530064 | D38: 1.295821094 | E38: 1.670648865 | F38: 2.000297822 | G38: 2.390119473 | H38: 2.660283029
A39: 80 | B39: 0.5264965293 | C39: 0.8461373479 | D39: 1.292223583 | E39: 1.664124579 | F39: 1.990063421 | G39: 2.373868273 | H39: 2.638690596
A40: 100 | B40: 0.5260762706 | C40: 0.8452304245 | D40: 1.290074761 | E40: 1.660234326 | F40: 1.983971519 | G40: 2.364217366 | H40: 2.625890521
A41: 150 | B41: 0.525516745 | C41: 0.8440240736 | D41: 1.287220914 | E41: 1.6550755 | F41: 1.975905331 | G41: 2.351464582 | H41: 2.609002566
A42: 300 | B42: 0.5249581581 | C42: 0.8428210112 | D42: 1.284379868 | E42: 1.649948674 | F42: 1.967903011 | G42: 2.338841924 | H42: 2.592316411
A43: 1000 | B43: 0.5245677073 | C43: 0.8419808222 | D43: 1.282398721 | E43: 1.646378817 | F43: 1.962339081 | G43: 2.330082675 | H43: 2.580754698
A44: 99999999 | B44: 0.5244005265 | C44: 0.8416212341 | D44: 1.281551567 | E44: 1.64485364 | F44: 1.959964008 | G44: 2.326347913 | H44: 2.575829353

Sheet T5b D(t)
A1: Tabelle 5 b: t-Verteilung | H1: Symmetrisches Intervall um den Mittelwert
B2: D (t)
A3: (1-a) | B3: 0.7 | C3: 0.8 | D3: 0.9 | E3: 0.95 | F3: 0.975 | G3: 0.99 | H3: 0.998
A4: a | B4: =1-B3 -> 0.3 | C4: 0.2 | D4: 0.1 | E4: 0.05 | F4: 0.025 | G4: 0.01 | H4: 0.002
A5: n a / 2 | B5: =B4/2 -> 0.15 | C5: 0.1 | D5: 0.05 | E5: 0.025 | F5: 0.0125 | G5: 0.005 | H5: 0.001
A6: 1 | B6: =TINV(B$4,$A6) -> 1.962610506 | C6: 3.077683537 | D6: 6.313751515 | E6: 12.70620474 | F6: 25.45169958 | G6: 63.65674116 | H6: 318.308839
A7: 2 | B7: 1.38620656 | C7: 1.885618083 | D7: 2.91998558 | E7: 4.30265273 | F7: 6.205346817 | G7: 9.924843201 | H7: 22.32712477
A8: 3 | B8: 1.249778105 | C8: 1.637744354 | D8: 2.353363435 | E8: 3.182446305 | F8: 4.176534846 | G8: 5.84090931 | H8: 10.21453185
A9: 4 | B9: 1.189566852 | C9: 1.533206274 | D9: 2.131846786 | E9: 2.776445105 | F9: 3.495405933 | G9: 4.604094871 | H9: 7.17318222
A10: 5 | B10: 1.155767343 | C10: 1.475884049 | D10: 2.015048373 | E10: 2.570581836 | F10: 3.16338145 | G10: 4.032142984 | H10: 5.893429531
A11: 6 | B11: 1.134156931 | C11: 1.439755747 | D11: 1.943180281 | E11: 2.446911851 | F11: 2.968686684 | G11: 3.707428021 | H11: 5.207626239
A12: 7 | B12: 1.119159128 | C12: 1.414923928 | D12: 1.894578605 | E12: 2.364624252 | F12: 2.841244249 | G12: 3.499483297 | H12: 4.785289629
A13: 8 | B13: 1.108145445 | C13: 1.39681531 | D13: 1.859548038 | E13: 2.306004135 | F13: 2.751523596 | G13: 3.355387331 | H13: 4.500790934
A14: 9 | B14: 1.099716196 | C14: 1.383028738 | D14: 1.833112933 | E14: 2.262157163 | F14: 2.685010847 | G14: 3.249835542 | H14: 4.296805663
A15: 10 | B15: 1.093058074 | C15: 1.372183641 | D15: 1.812461123 | E15: 2.228138852 | F15: 2.633766916 | G15: 3.169272673 | H15: 4.143700494
A16: 11 | B16: =TINV(B$4,$A16) -> 1.08766638 | C16: 1.363430318 | D16: 1.795884819 | E16: 2.20098516 | F16: 2.593092683 | G16: 3.105806516 | H16: 4.024701038
A17: 12 | B17: 1.08321142 | C17: 1.356217334 | D17: 1.782287556 | E17: 2.17881283 | F17: 2.560032959 | G17: 3.054539589 | H17: 3.929633265
A18: 13 | B18: 1.079468737 | C18: 1.350171289 | D18: 1.770933396 | E18: 2.160368656 | F18: 2.532637815 | G18: 3.012275839 | H18: 3.851982391
A19: 14 | B19: 1.076280245 | C19: 1.345030374 | D19: 1.761310136 | E19: 2.144786688 | F19: 2.509569411 | G19: 2.976842734 | H19: 3.787390238
A20: 15 | B20: 1.073531396 | C20: 1.340605608 | D20: 1.753050356 | E20: 2.131449546 | F20: 2.489879703 | G20: 2.946712883 | H20: 3.732834425
A21: 16 | B21: 1.071137163 | C21: 1.336757167 | D21: 1.745883676 | E21: 2.119905299 | F21: 2.472878322 | G21: 2.920781622 | H21: 3.686154793
A22: 17 | B22: 1.069033111 | C22: 1.33337939 | D22: 1.739606726 | E22: 2.109815578 | F22: 2.45805072 | G22: 2.89823052 | H22: 3.64576738
A23: 18 | B23: 1.067169516 | C23: 1.330390944 | D23: 1.734063607 | E23: 2.10092204 | F23: 2.445005617 | G23: 2.878440473 | H23: 3.610484885
A24: 19 | B24: 1.065507399 | C24: 1.327728209 | D24: 1.729132812 | E24: 2.093024054 | F24: 2.433440211 | G24: 2.860934606 | H24: 3.579400149
A25: 20 | B25: 1.064015771 | C25: 1.325340707 | D25: 1.724718243 | E25: 2.085963447 | F25: 2.42311654 | G25: 2.84533971 | H25: 3.551808343
A26: 21 | B26: =TINV(B$4,$A26) -> 1.062669688 | C26: 1.323187874 | D26: 1.720742903 | E26: 2.079613845 | F26: 2.413845017 | G26: 2.831359558 | H26: 3.527153669
A27: 22 | B27: 1.061448843 | C27: 1.321236742 | D27: 1.717144374 | E27: 2.073873068 | F27: 2.405472746 | G27: 2.818756061 | H27: 3.504992031
A28: 23 | B28: 1.06033654 | C28: 1.31946024 | D28: 1.713871528 | E28: 2.06865761 | F28: 2.397875065 | G28: 2.807335684 | H28: 3.484964375
A29: 24 | B29: 1.059318921 | C29: 1.317835934 | D29: 1.71088208 | E29: 2.063898562 | F29: 2.390949315 | G29: 2.796939505 | H29: 3.466777298
A30: 25 | B30: 1.058384393 | C30: 1.316345073 | D30: 1.708140761 | E30: 2.059538553 | F30: 2.384610201 | G30: 2.787435814 | H30: 3.450188727
A31: 26 | B31: 1.057523179 | C31: 1.314971864 | D31: 1.70561792 | E31: 2.055529439 | F31: 2.378786266 | G31: 2.778714533 | H31: 3.434997182
A32: 27 | B32: 1.05672698 | C32: 1.313702913 | D32: 1.703288446 | E32: 2.051830516 | F32: 2.373417201 | G32: 2.770682957 | H32: 3.421033621
A33: 28 | B33: 1.055988703 | C33: 1.312526782 | D33: 1.701130934 | E33: 2.048407142 | F33: 2.368451749 | G33: 2.763262455 | H33: 3.408155178
A34: 29 | B34: 1.055302249 | C34: 1.311433647 | D34: 1.699127027 | E34: 2.045229642 | F34: 2.363846073 | G34: 2.756385904 | H34: 3.396240288
A35: 30 | B35: 1.054662347 | C35: 1.310415025 | D35: 1.697260887 | E35: 2.042272456 | F35: 2.359562459 | G35: 2.749995654 | H35: 3.385184867
A36: 40 | B36: =TINV(B$4,$A36) -> 1.050045778 | C36: 1.303077053 | D36: 1.683851013 | E36: 2.02107539 | F36: 2.328934768 | G36: 2.704459267 | H36: 3.306877714
A37: 50 | B37: 1.047294927 | C37: 1.298713694 | D37: 1.675905025 | E37: 2.008559112 | F37: 2.310913936 | G37: 2.677793271 | H37: 3.261409056
A38: 60 | B38: 1.045468943 | C38: 1.295821094 | D38: 1.670648865 | E38: 2.000297822 | F38: 2.299045582 | G38: 2.660283029 | H38: 3.231709126
A39: 80 | B39: 1.043195341 | C39: 1.292223583 | D39: 1.664124579 | E39: 1.990063421 | F39: 2.284371618 | G39: 2.638690596 | H39: 3.19525769
A40: 100 | B40: 1.041835901 | C40: 1.290074761 | D40: 1.660234326 | E40: 1.983971519 | F40: 2.275652413 | G40: 2.625890521 | H40: 3.173739494
A41: 150 | B41: 1.040028808 | C41: 1.287220914 | D41: 1.6550755 | E41: 1.975905331 | F41: 2.264125081 | G41: 2.609002566 | H41: 3.145452532
A42: 300 | B42: 1.038227976 | C42: 1.284379868 | D42: 1.649948674 | E42: 1.967903011 | F42: 2.252708928 | G42: 2.592316411 | H42: 3.117619554
A43: 1000 | B43: 1.036971111 | C43: 1.282398721 | D43: 1.646378817 | E43: 1.962339081 | F43: 2.244783115 | G43: 2.580754698 | H43: 3.098402164
A44: 99999999 | B44: 1.036433398 | C44: 1.281551567 | D44: 1.64485364 | E44: 1.959964008 | F44: 2.241402763 | G44: 2.575829353 | H44: 3.09023239

Sheet t-Vert Grafik
A1: t-Verteilung | O1: Vergleich:
C2: (n =) | G2: (n =) | J2: (n =) | M2: (n =) | O2: NORMAL- | R2: Dichtefunktion der t-Verteilung für verschiedene Freiheitsgrade
B3: df = | C3: 1 | F3: df = | G3: 2 | I3: df = | J3: 5 | L3: df = | M3: 10 | O3: Verteilung | R3: (df = degrees of freedom = Freiheitsgrade)
B4: t | C4: f(t) | D4: F(t) | F4: f(t) | G4: F(t) | I4: f(t) | J4: F(t) | L4: f(t) | M4: F(t) | O4: f(z) | P4: F(z)
B5: -4 | C5: =_xlfn.T.DIST(B5,C$3,) -> 0.01872411095 | D5: =_xlfn.T.DIST(B5,C$3,TRUE) -> 0.07797913038 | F5: =_xlfn.T.DIST($B5,G$3,) -> 0.01309457002 | G5: =_xlfn.T.DIST($B5,G$3,TRUE) -> 0.02859547921 | I5: =_xlfn.T.DIST($B5,J$3,) -> 0.005123727052 | J5: =_xlfn.T.DIST($B5,J$3,TRUE) -> 0.00516170774 | L5: =_xlfn.T.DIST($B5,M$3,) -> 0.002031033911 | M5: =_xlfn.T.DIST($B5,M$3,TRUE) -> 0.001259166312 | O5: =_xlfn.NORM.DIST(B5,0,1,FALSE) -> 0.0001338302258 | P5: =_xlfn.NORM.DIST(B5,0,1,TRUE) -> 3.167124183e-05
B6: -3.8 | C6: =_xlfn.T.DIST(B6,C$3,) -> 0.02061592527 | D6: =_xlfn.T.DIST(B6,C$3,TRUE) -> 0.08190868242 | F6: =_xlfn.T.DIST($B6,G$3,) -> 0.01500193503 | G6: =_xlfn.T.DIST($B6,G$3,TRUE) -> 0.03139955752 | I6: =_xlfn.T.DIST($B6,J$3,) -> 0.006458848364 | J6: =_xlfn.T.DIST($B6,J$3,TRUE) -> 0.006314241362 | L6: =_xlfn.T.DIST($B6,M$3,) -> 0.002854394395 | M6: =_xlfn.T.DIST($B6,M$3,TRUE) -> 0.001742903262 | O6: =_xlfn.NORM.DIST(B6,0,1,FALSE) -> 0.0002919469258 | P6: =_xlfn.NORM.DIST(B6,0,1,TRUE) -> 7.234804393e-05
B7: -3.6 | C7: 0.02280156778 | D7: 0.08624506109 | F7: 0.01728234258 | G7: 0.034621079 | I7: 0.008190772687 | J7: 0.007771628465 | L7: 0.004024623215 | M7: 0.002423953841 | O7: 0.0006119019301 | P7: 0.0001591085902
B8: -3.4 | C8: 0.0253431438 | D8: 0.09105300186 | F8: 0.02002674951 | G8: 0.0383433704 | I8: 0.01044871475 | J8: 0.009625521792 | L8: 0.005688561107 | M8: 0.003385536212 | O8: 0.001232219168 | P8: 0.0003369292657
B9: -3.2 | C9: 0.02831938489 | D9: 0.09641124798 | F9: 0.02335220386 | G9: 0.04267043962 | I9: 0.01340568374 | J9: 0.0119975884 | L9: 0.008052167372 | M9: 0.004745847898 | O9: 0.002384088201 | P9: 0.0006871379379
B10: -3 | C10: 0.03183098862 | D10: 0.1024163823 | F10: 0.02741012223 | G10: 0.04773298313 | I10: 0.0172925788 | J10: 0.01504962395 | L10: 0.01140054946 | M10: 0.006671827511 | O10: 0.004431848412 | P10: 0.001349898032
B11: -2.8 | C11: 0.03600790568 | D11: 0.1091879114 | F11: 0.0323971907 | G11: 0.05369630086 | I11: 0.02241551902 | J11: 0.01899681173 | L11: 0.01612125744 | M11: 0.009397274189 | O11: 0.007915451583 | P11: 0.00255513033
B12: -2.6 | C12: 0.04101931523 | D12: 0.1168750613 | F12: 0.03856948507 | G12: 0.06077070404 | I12: 0.02917574169 | J12: 0.02412472653 | L12: 0.0227281198 | M12: 0.01324574876 | O12: 0.01358296923 | P12: 0.004661188024
B13: -2.4 | C13: 0.04708726127 | D13: 0.1256659164 | F13: 0.04626019063 | G13: 0.06922510483 | I13: 0.03808965653 | J13: 0.0308103956 | L13: 0.03187949375 | M13: 0.01865782303 | O13: 0.02239453029 | P13: 0.008197535925
B14: -2.2 | C14: 0.0545051175 | D14: 0.1357997488 | F14: 0.05590051995 | G14: 0.0794044879 | I14: 0.04980335215 | J14: 0.03954694895 | L14: 0.04437967661 | M14: 0.02622053422 | O14: 0.03547459285 | P14: 0.01390344751
B15: -2 | C15: 0.06366197724 | D15: 0.1475836177 | F15: 0.06804138174 | G15: 0.09175170954 | I15: 0.06509031033 | J15: 0.05096973941 | L15: 0.06114576632 | M15: 0.03669401739 | O15: 0.05399096651 | P15: 0.02275013195
B16: -1.8 | C16: 0.07507308636 | D16: 0.1614144672 | F16: 0.0833687077 | G16: 0.1068331745 | I16: 0.0848129629 | J16: 0.06587879164 | L16: 0.08311638965 | M16: 0.05102612157 | O16: 0.0789501583 | P16: 0.03593031911
B17: -1.6 | C17: 0.08941288938 | D17: 0.1778076845 | F17: 0.1026958127 | G17: 0.1253656754 | I17: 0.1098192527 | J17: 0.08524761591 | L17: 0.1110778773 | M17: 0.07034087863 | O17: 0.1109208347 | P17: 0.0547992917
B18: -1.4 | C18: 0.1075371237 | D18: 0.1974315433 | F18: 0.126898714 | G18: 0.1482367647 | I18: 0.1407395479 | J18: 0.11020194 | L18: 0.1453948757 | M18: 0.0958826761 | O18: 0.1497274656 | P18: 0.08075665923
B19: -1.2 | C19: 0.1304548714 | D19: 0.2211420616 | F19: 0.156733682 | G19: 0.1765016804 | I19: 0.1776586135 | J19: 0.1419455284 | L19: 0.1856638936 | M19: 0.1288981504 | O19: 0.194186055 | P19: 0.1150696702
B20: -1 | C20: 0.1591549431 | D20: 0.25 | F20: 0.1924500897 | G20: 0.2113248654 | I20: 0.2196797974 | J20: 0.1816087338 | L20: 0.2303619892 | M20: 0.1704465662 | O20: 0.2419707245 | P20: 0.1586552539
B21: -0.8 | C21: 0.194091394 | D21: 0.2852232875 | F21: 0.2331278238 | G21: 0.253817018 | I21: 0.2644883568 | J21: 0.2300070335 | L21: 0.2766251323 | M21: 0.2211502096 | O21: 0.2896915528 | P21: 0.2118553986
B22: -0.6 | C22: 0.2340513869 | D22: 0.3279791304 | F22: 0.2758239639 | G22: 0.3047166335 | I22: 0.3081410097 | J22: 0.2873301437 | L22: 0.3203258105 | M22: 0.280927591 | O22: 0.3332246029 | P22: 0.2742531178
B23: -0.4 | C23: 0.2744050743 | D23: 0.3788810584 | F23: 0.315006397 | G23: 0.3639172365 | I23: 0.3453780758 | J23: 0.3528365574 | L23: 0.3565785337 | M23: 0.3487837048 | O23: 0.3682701403 | P23: 0.3445782584
B24: -0.2 | C24: 0.3060671983 | D24: 0.4371670418 | F24: 0.3432059029 | G24: 0.4299859958 | I24: 0.3706399777 | J24: 0.424680257 | L24: 0.3806581811 | M24: 0.4227445957 | O24: 0.391042694 | P24: 0.4207402906
B25: 0 | C25: 0.3183098862 | D25: 0.5 | F25: 0.3535533906 | G25: 0.5 | I25: 0.3796066898 | J25: 0.5 | L25: 0.389108384 | M25: 0.5 | O25: 0.3989422804 | P25: 0.5
B26: 0.2 | C26: 0.3060671983 | D26: 0.5628329582 | F26: 0.3432059029 | G26: 0.5700140042 | I26: 0.3706399777 | J26: 0.575319743 | L26: 0.3806581811 | M26: 0.5772554043 | O26: 0.391042694 | P26: 0.5792597094
B27: 0.4 | C27: 0.2744050743 | D27: 0.6211189416 | F27: 0.315006397 | G27: 0.6360827635 | I27: 0.3453780758 | J27: 0.6471634426 | L27: 0.3565785337 | M27: 0.6512162952 | O27: 0.3682701403 | P27: 0.6554217416
B28: 0.6 | C28: 0.2340513869 | D28: 0.6720208696 | F28: 0.2758239639 | G28: 0.6952833665 | I28: 0.3081410097 | J28: 0.7126698563 | L28: 0.3203258105 | M28: 0.719072409 | O28: 0.3332246029 | P28: 0.7257468822
B29: 0.8 | C29: 0.194091394 | D29: 0.7147767125 | F29: 0.2331278238 | G29: 0.746182982 | I29: 0.2644883568 | J29: 0.7699929665 | L29: 0.2766251323 | M29: 0.7788497904 | O29: 0.2896915528 | P29: 0.7881446014
B30: 1 | C30: 0.1591549431 | D30: 0.75 | F30: 0.1924500897 | G30: 0.7886751346 | I30: 0.2196797974 | J30: 0.8183912662 | L30: 0.2303619892 | M30: 0.8295534338 | O30: 0.2419707245 | P30: 0.8413447461
B31: 1.2 | C31: 0.1304548714 | D31: 0.7788579384 | F31: 0.156733682 | G31: 0.8234983196 | I31: 0.1776586135 | J31: 0.8580544716 | L31: 0.1856638936 | M31: 0.8711018496 | O31: 0.194186055 | P31: 0.8849303298
B32: 1.4 | C32: 0.1075371237 | D32: 0.8025684567 | F32: 0.126898714 | G32: 0.8517632353 | I32: 0.1407395479 | J32: 0.88979806 | L32: 0.1453948757 | M32: 0.9041173239 | O32: 0.1497274656 | P32: 0.9192433408
B33: 1.6 | C33: 0.08941288938 | D33: 0.8221923155 | F33: 0.1026958127 | G33: 0.8746343246 | I33: 0.1098192527 | J33: 0.9147523841 | L33: 0.1110778773 | M33: 0.9296591214 | O33: 0.1109208347 | P33: 0.9452007083
B34: 1.8 | C34: 0.07507308636 | D34: 0.8385855328 | F34: 0.0833687077 | G34: 0.8931668255 | I34: 0.0848129629 | J34: 0.9341212084 | L34: 0.08311638965 | M34: 0.9489738784 | O34: 0.0789501583 | P34: 0.9640696809
B35: 2 | C35: 0.06366197724 | D35: 0.8524163823 | F35: 0.06804138174 | G35: 0.9082482905 | I35: 0.06509031033 | J35: 0.9490302606 | L35: 0.06114576632 | M35: 0.9633059826 | O35: 0.05399096651 | P35: 0.9772498681
B36: 2.2 | C36: 0.0545051175 | D36: 0.8642002512 | F36: 0.05590051995 | G36: 0.9205955121 | I36: 0.04980335215 | J36: 0.960453051 | L36: 0.04437967661 | M36: 0.9737794658 | O36: 0.03547459285 | P36: 0.9860965525
B37: 2.4 | C37: 0.04708726127 | D37: 0.8743340836 | F37: 0.04626019063 | G37: 0.9307748952 | I37: 0.03808965653 | J37: 0.9691896044 | L37: 0.03187949375 | M37: 0.981342177 | O37: 0.02239453029 | P37: 0.9918024641
B38: 2.6 | C38: 0.04101931523 | D38: 0.8831249387 | F38: 0.03856948507 | G38: 0.939229296 | I38: 0.02917574169 | J38: 0.9758752735 | L38: 0.0227281198 | M38: 0.9867542512 | O38: 0.01358296923 | P38: 0.995338812
B39: 2.8 | C39: 0.03600790568 | D39: 0.8908120886 | F39: 0.0323971907 | G39: 0.9463036991 | I39: 0.02241551902 | J39: 0.9810031883 | L39: 0.01612125744 | M39: 0.9906027258 | O39: 0.007915451583 | P39: 0.9974448697
B40: 3 | C40: 0.03183098862 | D40: 0.8975836177 | F40: 0.02741012223 | G40: 0.9522670169 | I40: 0.0172925788 | J40: 0.9849503761 | L40: 0.01140054946 | M40: 0.9933281725 | O40: 0.004431848412 | P40: 0.998650102
B41: 3.2 | C41: 0.02831938489 | D41: 0.903588752 | F41: 0.02335220386 | G41: 0.9573295604 | I41: 0.01340568374 | J41: 0.9880024116 | L41: 0.008052167372 | M41: 0.9952541521 | O41: 0.002384088201 | P41: 0.9993128621
B42: 3.4 | C42: 0.0253431438 | D42: 0.9089469981 | F42: 0.02002674951 | G42: 0.9616566296 | I42: 0.01044871475 | J42: 0.9903744782 | L42: 0.005688561107 | M42: 0.9966144638 | O42: 0.001232219168 | P42: 0.9996630707
B43: 3.6 | C43: 0.02280156778 | D43: 0.9137549389 | F43: 0.01728234258 | G43: 0.965378921 | I43: 0.008190772687 | J43: 0.9922283715 | L43: 0.004024623215 | M43: 0.9975760462 | O43: 0.0006119019301 | P43: 0.9998408914
B44: 3.8 | C44: 0.02061592527 | D44: 0.9180913176 | F44: 0.01500193503 | G44: 0.9686004425 | I44: 0.006458848364 | J44: 0.9936857586 | L44: 0.002854394395 | M44: 0.9982570967 | O44: 0.0002919469258 | P44: 0.999927652
B45: 4 | C45: 0.01872411095 | D45: 0.9220208696 | F45: 0.01309457002 | G45: 0.9714045208 | I45: 0.005123727052 | J45: 0.9948382923 | L45: 0.002031033911 | M45: 0.9987408337 | O45: 0.0001338302258 | P45: 0.9999683288
